{"text_format":"3","workbook":"xlsx","n_sheets":3,"sheets":["Données de feuille de route","Feuille de route Agile","À propos de"],"not_rendered":{"defined_names":5},"read":"whole","date_system":"1900"}

{"sheet":"Données de feuille de route","index":0,"n_rows":13,"n_cols":7,"rows_kept":13,"merged":[[12,1,12,4]]}
["Créez une feuille de route Agile en indiquant des jalons ou activités importants dans le tableau Données de feuille de route de cette feuille de calcul.\nLe titre de cette feuille de calcul figure dans la cellule B1. \nDes informations sur l’utilisation de cette feuille de calcul, notamment des instructions pour les lecteurs d’écran, figurent dans la feuille de calcul À propos de.\nContinuez à parcourir la colonne A pour lire des instructions supplémentaires.","Données de chronologie Agile"]
["Les en-têtes de tableau figurent dans les cellules B2 à E2. Utilisez les filtres de titre pour filtrer les tableaux et trouver des éléments spécifiques.\nLa feuille de route Agile fonctionne de manière optimale lorsque le tableau est trié par ordre croissant de priorité, puis par jalon ou activité.\nLe tableau Données de feuille de route contient des données d’exemple dans les cellules B3 à E12. \nLorsqu’un jalon ou une activité est terminé, mettez à jour le champ Résultat correspondant pour afficher les résultats dans la feuille de calcul Feuille de route Agile. Entrez « Aucun changement » pour indiquer qu’un jalon n’a aucune incidence.\nAccédez à la cellule A13 pour passer à l’instruction suivante.\n","Cible","Jalon ou activité","Priorité","Résultat",null,"<-- trier le tableau par Priorité puis Jalon ou activité, dans l’ordre croissant"]
[null,"En cours","Activité 1\nCréation du prototype","1 - Élevée",null,null,"<-- ajouter un résultat pour chaque jalon terminé. Entrez « Aucun changement » pour indiquer qu’un jalon n’a aucune incidence."]
[null,"Court terme","Activité 2\nDémonstration du prototype","1 - Élevée"]
[null,"En cours","Activité 6","1 - Élevée"]
[null,"À venir","Activité 7\nExternaliser le développement de la mise en œuvre de l’étape 1","1 - Élevée"]
[null,"Terminé","Activité 9\nÉtape 1 approuvée","1 - Élevée","Diminution de 10 %"]
[null,"À venir","Activité 10","2 - Moyenne"]
[null,"Court terme","Activité 8","2 - Moyenne"]
[null,"Terminé","Activité 3","3 - Basse","Aucun changement"]
[null,"À venir","Activité 4","3 - Basse"]
[null,"En cours","Activité 5","3 - Basse"]
["Pour ajouter des éléments, insérez de nouvelles lignes dans le tableau au-dessus de cette ligne.\nCeci est la dernière instruction de cette feuille de calcul.","Pour ajouter des éléments, insérez de nouvelles lignes au-dessus de cette ligne."]

{"sheet":"Feuille de route Agile","index":1,"n_rows":100,"n_cols":8,"rows_kept":100}
["Cette feuille de calcul comporte une feuille de route décrivant des jalons et activités issus de la feuille de calcul Données de feuille de route. \nLe titre figure dans la cellule B1. \nLes résultats indiquant « Aucun changement » sont surlignés en orange clair, rgb(255, 230, 210).\nLes jalons ou activités terminés sont surlignés en vert clair, rgb(237,251,219).","Feuille de route Agile"]
["Les titres du graphique figurent dans les cellules B2, D2, F2 et H2. Il s’agit des suivants : Terminé, En cours, Court terme et À venir. Modifiez ces titres pour modifier les valeurs de sélection de la colonne Cible dans le tableau Données de feuille de route de la feuille de calcul du même nom.\nLes cellules B3 à H20 contiennent les jalons et activités correspondant aux titres de cette ligne. \nLes jalons et activités sont créés dans la feuille de calcul Données de feuille de route.\nNe modifiez ou supprimez pas les entrées de cette feuille de calcul. Mettez à jour le tableau Données de feuille de route dans la feuille de calcul du même nom pour mettre à jour le contenu de cette feuille de calcul.\nCeci est la dernière instruction de cette feuille de calcul.","Terminé",null,"En cours",null,"Court terme",null,"À venir"]
[null,{"$f":"IFERROR(INDEX(Activité,SMALL(IF(Cible=$B$2,ROW(Activité)-MIN(ROW(Activité))+1),ROWS($B$3:B3)))&\" \"&CHAR(10)&(INDEX(Résultat,SMALL(IF(Cible=$B$2,ROW(Résultat)-MIN(ROW(Résultat))+1),ROWS($B$3:B3))))&CHAR(10),\"\")","v":"Activité 9\nÉtape 1 approuvée \nDiminution de 10 %\n"},null,{"$f":"IFERROR(INDEX(Activité,SMALL(IF(Cible=$D$2,ROW(Activité)-MIN(ROW(Activité))+1),ROWS($B$3:B3)))&CHAR(10),\"\")","v":"Activité 1\nCréation du prototype\n"},null,{"$f":"IFERROR(INDEX(Activité,SMALL(IF(Cible=$F$2,ROW(Activité)-MIN(ROW(Activité))+1),ROWS($B$3:B3)))&CHAR(10),\"\")","v":"Activité 2\nDémonstration du prototype\n"},null,{"$f":"IFERROR(INDEX(Activité,SMALL(IF(Cible=$H$2,ROW(Activité)-MIN(ROW(Activité))+1),ROWS($B$3:B3)))&CHAR(10),\"\")","v":"Activité 7\nExternaliser le développement de la mise en œuvre de l’étape 1\n"}]
[null,{"$f":"IFERROR(INDEX(Activité,SMALL(IF(Cible=$B$2,ROW(Activité)-MIN(ROW(Activité))+1),ROWS($B$3:B4)))&\" \"&CHAR(10)&(INDEX(Résultat,SMALL(IF(Cible=$B$2,ROW(Résultat)-MIN(ROW(Résultat))+1),ROWS($B$3:B4))))&CHAR(10),\"\")","v":"Activité 3 \nAucun changement\n"},null,{"$f":"IFERROR(INDEX(Activité,SMALL(IF(Cible=$D$2,ROW(Activité)-MIN(ROW(Activité))+1),ROWS($B$3:B4)))&CHAR(10),\"\")","v":"Activité 6\n"},null,{"$f":"IFERROR(INDEX(Activité,SMALL(IF(Cible=$F$2,ROW(Activité)-MIN(ROW(Activité))+1),ROWS($B$3:B4)))&CHAR(10),\"\")","v":"Activité 8\n"},null,{"$f":"IFERROR(INDEX(Activité,SMALL(IF(Cible=$H$2,ROW(Activité)-MIN(ROW(Activité))+1),ROWS($B$3:B4)))&CHAR(10),\"\")","v":"Activité 10\n"}]
[null,{"$f":"IFERROR(INDEX(Activité,SMALL(IF(Cible=$B$2,ROW(Activité)-MIN(ROW(Activité))+1),ROWS($B$3:B5)))&\" \"&CHAR(10)&(INDEX(Résultat,SMALL(IF(Cible=$B$2,ROW(Résultat)-MIN(ROW(Résultat))+1),ROWS($B$3:B5))))&CHAR(10),\"\")","v":""},null,{"$f":"IFERROR(INDEX(Activité,SMALL(IF(Cible=$D$2,ROW(Activité)-MIN(ROW(Activité))+1),ROWS($B$3:B5)))&CHAR(10),\"\")","v":"Activité 5\n"},null,{"$f":"IFERROR(INDEX(Activité,SMALL(IF(Cible=$F$2,ROW(Activité)-MIN(ROW(Activité))+1),ROWS($B$3:B5)))&CHAR(10),\"\")","v":""},null,{"$f":"IFERROR(INDEX(Activité,SMALL(IF(Cible=$H$2,ROW(Activité)-MIN(ROW(Activité))+1),ROWS($B$3:B5)))&CHAR(10),\"\")","v":"Activité 4\n"}]
[null,{"$f":"IFERROR(INDEX(Activité,SMALL(IF(Cible=$B$2,ROW(Activité)-MIN(ROW(Activité))+1),ROWS($B$3:B6)))&\" \"&CHAR(10)&(INDEX(Résultat,SMALL(IF(Cible=$B$2,ROW(Résultat)-MIN(ROW(Résultat))+1),ROWS($B$3:B6))))&CHAR(10),\"\")","v":""},null,{"$f":"IFERROR(INDEX(Activité,SMALL(IF(Cible=$D$2,ROW(Activité)-MIN(ROW(Activité))+1),ROWS($B$3:B6)))&CHAR(10),\"\")","v":""},null,{"$f":"IFERROR(INDEX(Activité,SMALL(IF(Cible=$F$2,ROW(Activité)-MIN(ROW(Activité))+1),ROWS($B$3:B6)))&CHAR(10),\"\")","v":""},null,{"$f":"IFERROR(INDEX(Activité,SMALL(IF(Cible=$H$2,ROW(Activité)-MIN(ROW(Activité))+1),ROWS($B$3:B6)))&CHAR(10),\"\")","v":""}]
[null,{"$f":"IFERROR(INDEX(Activité,SMALL(IF(Cible=$B$2,ROW(Activité)-MIN(ROW(Activité))+1),ROWS($B$3:B7)))&\" \"&CHAR(10)&(INDEX(Résultat,SMALL(IF(Cible=$B$2,ROW(Résultat)-MIN(ROW(Résultat))+1),ROWS($B$3:B7))))&CHAR(10),\"\")","v":""},null,{"$f":"IFERROR(INDEX(Activité,SMALL(IF(Cible=$D$2,ROW(Activité)-MIN(ROW(Activité))+1),ROWS($B$3:B7)))&CHAR(10),\"\")","v":""},null,{"$f":"IFERROR(INDEX(Activité,SMALL(IF(Cible=$F$2,ROW(Activité)-MIN(ROW(Activité))+1),ROWS($B$3:B7)))&CHAR(10),\"\")","v":""},null,{"$f":"IFERROR(INDEX(Activité,SMALL(IF(Cible=$H$2,ROW(Activité)-MIN(ROW(Activité))+1),ROWS($B$3:B7)))&CHAR(10),\"\")","v":""}]
[null,{"$f":"IFERROR(INDEX(Activité,SMALL(IF(Cible=$B$2,ROW(Activité)-MIN(ROW(Activité))+1),ROWS($B$3:B8)))&\" \"&CHAR(10)&(INDEX(Résultat,SMALL(IF(Cible=$B$2,ROW(Résultat)-MIN(ROW(Résultat))+1),ROWS($B$3:B8))))&CHAR(10),\"\")","v":""},null,{"$f":"IFERROR(INDEX(Activité,SMALL(IF(Cible=$D$2,ROW(Activité)-MIN(ROW(Activité))+1),ROWS($B$3:B8)))&CHAR(10),\"\")","v":""},null,{"$f":"IFERROR(INDEX(Activité,SMALL(IF(Cible=$F$2,ROW(Activité)-MIN(ROW(Activité))+1),ROWS($B$3:B8)))&CHAR(10),\"\")","v":""},null,{"$f":"IFERROR(INDEX(Activité,SMALL(IF(Cible=$H$2,ROW(Activité)-MIN(ROW(Activité))+1),ROWS($B$3:B8)))&CHAR(10),\"\")","v":""}]
[null,{"$f":"IFERROR(INDEX(Activité,SMALL(IF(Cible=$B$2,ROW(Activité)-MIN(ROW(Activité))+1),ROWS($B$3:B9)))&\" \"&CHAR(10)&(INDEX(Résultat,SMALL(IF(Cible=$B$2,ROW(Résultat)-MIN(ROW(Résultat))+1),ROWS($B$3:B9))))&CHAR(10),\"\")","v":""},null,{"$f":"IFERROR(INDEX(Activité,SMALL(IF(Cible=$D$2,ROW(Activité)-MIN(ROW(Activité))+1),ROWS($B$3:B9)))&CHAR(10),\"\")","v":""},null,{"$f":"IFERROR(INDEX(Activité,SMALL(IF(Cible=$F$2,ROW(Activité)-MIN(ROW(Activité))+1),ROWS($B$3:B9)))&CHAR(10),\"\")","v":""},null,{"$f":"IFERROR(INDEX(Activité,SMALL(IF(Cible=$H$2,ROW(Activité)-MIN(ROW(Activité))+1),ROWS($B$3:B9)))&CHAR(10),\"\")","v":""}]
[null,{"$f":"IFERROR(INDEX(Activité,SMALL(IF(Cible=$B$2,ROW(Activité)-MIN(ROW(Activité))+1),ROWS($B$3:B10)))&\" \"&CHAR(10)&(INDEX(Résultat,SMALL(IF(Cible=$B$2,ROW(Résultat)-MIN(ROW(Résultat))+1),ROWS($B$3:B10))))&CHAR(10),\"\")","v":""},null,{"$f":"IFERROR(INDEX(Activité,SMALL(IF(Cible=$D$2,ROW(Activité)-MIN(ROW(Activité))+1),ROWS($B$3:B10)))&CHAR(10),\"\")","v":""},null,{"$f":"IFERROR(INDEX(Activité,SMALL(IF(Cible=$F$2,ROW(Activité)-MIN(ROW(Activité))+1),ROWS($B$3:B10)))&CHAR(10),\"\")","v":""},null,{"$f":"IFERROR(INDEX(Activité,SMALL(IF(Cible=$H$2,ROW(Activité)-MIN(ROW(Activité))+1),ROWS($B$3:B10)))&CHAR(10),\"\")","v":""}]
[null,{"$f":"IFERROR(INDEX(Activité,SMALL(IF(Cible=$B$2,ROW(Activité)-MIN(ROW(Activité))+1),ROWS($B$3:B11)))&\" \"&CHAR(10)&(INDEX(Résultat,SMALL(IF(Cible=$B$2,ROW(Résultat)-MIN(ROW(Résultat))+1),ROWS($B$3:B11))))&CHAR(10),\"\")","v":""},null,{"$f":"IFERROR(INDEX(Activité,SMALL(IF(Cible=$D$2,ROW(Activité)-MIN(ROW(Activité))+1),ROWS($B$3:B11)))&CHAR(10),\"\")","v":""},null,{"$f":"IFERROR(INDEX(Activité,SMALL(IF(Cible=$F$2,ROW(Activité)-MIN(ROW(Activité))+1),ROWS($B$3:B11)))&CHAR(10),\"\")","v":""},null,{"$f":"IFERROR(INDEX(Activité,SMALL(IF(Cible=$H$2,ROW(Activité)-MIN(ROW(Activité))+1),ROWS($B$3:B11)))&CHAR(10),\"\")","v":""}]
[null,{"$f":"IFERROR(INDEX(Activité,SMALL(IF(Cible=$B$2,ROW(Activité)-MIN(ROW(Activité))+1),ROWS($B$3:B12)))&\" \"&CHAR(10)&(INDEX(Résultat,SMALL(IF(Cible=$B$2,ROW(Résultat)-MIN(ROW(Résultat))+1),ROWS($B$3:B12))))&CHAR(10),\"\")","v":""},null,{"$f":"IFERROR(INDEX(Activité,SMALL(IF(Cible=$D$2,ROW(Activité)-MIN(ROW(Activité))+1),ROWS($B$3:B12)))&CHAR(10),\"\")","v":""},null,{"$f":"IFERROR(INDEX(Activité,SMALL(IF(Cible=$F$2,ROW(Activité)-MIN(ROW(Activité))+1),ROWS($B$3:B12)))&CHAR(10),\"\")","v":""},null,{"$f":"IFERROR(INDEX(Activité,SMALL(IF(Cible=$H$2,ROW(Activité)-MIN(ROW(Activité))+1),ROWS($B$3:B12)))&CHAR(10),\"\")","v":""}]
[null,{"$f":"IFERROR(INDEX(Activité,SMALL(IF(Cible=$B$2,ROW(Activité)-MIN(ROW(Activité))+1),ROWS($B$3:B13)))&\" \"&CHAR(10)&(INDEX(Résultat,SMALL(IF(Cible=$B$2,ROW(Résultat)-MIN(ROW(Résultat))+1),ROWS($B$3:B13))))&CHAR(10),\"\")","v":""},null,{"$f":"IFERROR(INDEX(Activité,SMALL(IF(Cible=$D$2,ROW(Activité)-MIN(ROW(Activité))+1),ROWS($B$3:B13)))&CHAR(10),\"\")","v":""},null,{"$f":"IFERROR(INDEX(Activité,SMALL(IF(Cible=$F$2,ROW(Activité)-MIN(ROW(Activité))+1),ROWS($B$3:B13)))&CHAR(10),\"\")","v":""},null,{"$f":"IFERROR(INDEX(Activité,SMALL(IF(Cible=$H$2,ROW(Activité)-MIN(ROW(Activité))+1),ROWS($B$3:B13)))&CHAR(10),\"\")","v":""}]
[null,{"$f":"IFERROR(INDEX(Activité,SMALL(IF(Cible=$B$2,ROW(Activité)-MIN(ROW(Activité))+1),ROWS($B$3:B14)))&\" \"&CHAR(10)&(INDEX(Résultat,SMALL(IF(Cible=$B$2,ROW(Résultat)-MIN(ROW(Résultat))+1),ROWS($B$3:B14))))&CHAR(10),\"\")","v":""},null,{"$f":"IFERROR(INDEX(Activité,SMALL(IF(Cible=$D$2,ROW(Activité)-MIN(ROW(Activité))+1),ROWS($B$3:B14)))&CHAR(10),\"\")","v":""},null,{"$f":"IFERROR(INDEX(Activité,SMALL(IF(Cible=$F$2,ROW(Activité)-MIN(ROW(Activité))+1),ROWS($B$3:B14)))&CHAR(10),\"\")","v":""},null,{"$f":"IFERROR(INDEX(Activité,SMALL(IF(Cible=$H$2,ROW(Activité)-MIN(ROW(Activité))+1),ROWS($B$3:B14)))&CHAR(10),\"\")","v":""}]
[null,{"$f":"IFERROR(INDEX(Activité,SMALL(IF(Cible=$B$2,ROW(Activité)-MIN(ROW(Activité))+1),ROWS($B$3:B15)))&\" \"&CHAR(10)&(INDEX(Résultat,SMALL(IF(Cible=$B$2,ROW(Résultat)-MIN(ROW(Résultat))+1),ROWS($B$3:B15))))&CHAR(10),\"\")","v":""},null,{"$f":"IFERROR(INDEX(Activité,SMALL(IF(Cible=$D$2,ROW(Activité)-MIN(ROW(Activité))+1),ROWS($B$3:B15)))&CHAR(10),\"\")","v":""},null,{"$f":"IFERROR(INDEX(Activité,SMALL(IF(Cible=$F$2,ROW(Activité)-MIN(ROW(Activité))+1),ROWS($B$3:B15)))&CHAR(10),\"\")","v":""},null,{"$f":"IFERROR(INDEX(Activité,SMALL(IF(Cible=$H$2,ROW(Activité)-MIN(ROW(Activité))+1),ROWS($B$3:B15)))&CHAR(10),\"\")","v":""}]
[null,{"$f":"IFERROR(INDEX(Activité,SMALL(IF(Cible=$B$2,ROW(Activité)-MIN(ROW(Activité))+1),ROWS($B$3:B16)))&\" \"&CHAR(10)&(INDEX(Résultat,SMALL(IF(Cible=$B$2,ROW(Résultat)-MIN(ROW(Résultat))+1),ROWS($B$3:B16))))&CHAR(10),\"\")","v":""},null,{"$f":"IFERROR(INDEX(Activité,SMALL(IF(Cible=$D$2,ROW(Activité)-MIN(ROW(Activité))+1),ROWS($B$3:B16)))&CHAR(10),\"\")","v":""},null,{"$f":"IFERROR(INDEX(Activité,SMALL(IF(Cible=$F$2,ROW(Activité)-MIN(ROW(Activité))+1),ROWS($B$3:B16)))&CHAR(10),\"\")","v":""},null,{"$f":"IFERROR(INDEX(Activité,SMALL(IF(Cible=$H$2,ROW(Activité)-MIN(ROW(Activité))+1),ROWS($B$3:B16)))&CHAR(10),\"\")","v":""}]
[null,{"$f":"IFERROR(INDEX(Activité,SMALL(IF(Cible=$B$2,ROW(Activité)-MIN(ROW(Activité))+1),ROWS($B$3:B17)))&\" \"&CHAR(10)&(INDEX(Résultat,SMALL(IF(Cible=$B$2,ROW(Résultat)-MIN(ROW(Résultat))+1),ROWS($B$3:B17))))&CHAR(10),\"\")","v":""},null,{"$f":"IFERROR(INDEX(Activité,SMALL(IF(Cible=$D$2,ROW(Activité)-MIN(ROW(Activité))+1),ROWS($B$3:B17)))&CHAR(10),\"\")","v":""},null,{"$f":"IFERROR(INDEX(Activité,SMALL(IF(Cible=$F$2,ROW(Activité)-MIN(ROW(Activité))+1),ROWS($B$3:B17)))&CHAR(10),\"\")","v":""},null,{"$f":"IFERROR(INDEX(Activité,SMALL(IF(Cible=$H$2,ROW(Activité)-MIN(ROW(Activité))+1),ROWS($B$3:B17)))&CHAR(10),\"\")","v":""}]
[null,{"$f":"IFERROR(INDEX(Activité,SMALL(IF(Cible=$B$2,ROW(Activité)-MIN(ROW(Activité))+1),ROWS($B$3:B18)))&\" \"&CHAR(10)&(INDEX(Résultat,SMALL(IF(Cible=$B$2,ROW(Résultat)-MIN(ROW(Résultat))+1),ROWS($B$3:B18))))&CHAR(10),\"\")","v":""},null,{"$f":"IFERROR(INDEX(Activité,SMALL(IF(Cible=$D$2,ROW(Activité)-MIN(ROW(Activité))+1),ROWS($B$3:B18)))&CHAR(10),\"\")","v":""},null,{"$f":"IFERROR(INDEX(Activité,SMALL(IF(Cible=$F$2,ROW(Activité)-MIN(ROW(Activité))+1),ROWS($B$3:B18)))&CHAR(10),\"\")","v":""},null,{"$f":"IFERROR(INDEX(Activité,SMALL(IF(Cible=$H$2,ROW(Activité)-MIN(ROW(Activité))+1),ROWS($B$3:B18)))&CHAR(10),\"\")","v":""}]
[null,{"$f":"IFERROR(INDEX(Activité,SMALL(IF(Cible=$B$2,ROW(Activité)-MIN(ROW(Activité))+1),ROWS($B$3:B19)))&\" \"&CHAR(10)&(INDEX(Résultat,SMALL(IF(Cible=$B$2,ROW(Résultat)-MIN(ROW(Résultat))+1),ROWS($B$3:B19))))&CHAR(10),\"\")","v":""},null,{"$f":"IFERROR(INDEX(Activité,SMALL(IF(Cible=$D$2,ROW(Activité)-MIN(ROW(Activité))+1),ROWS($B$3:B19)))&CHAR(10),\"\")","v":""},null,{"$f":"IFERROR(INDEX(Activité,SMALL(IF(Cible=$F$2,ROW(Activité)-MIN(ROW(Activité))+1),ROWS($B$3:B19)))&CHAR(10),\"\")","v":""},null,{"$f":"IFERROR(INDEX(Activité,SMALL(IF(Cible=$H$2,ROW(Activité)-MIN(ROW(Activité))+1),ROWS($B$3:B19)))&CHAR(10),\"\")","v":""}]
[null,{"$f":"IFERROR(INDEX(Activité,SMALL(IF(Cible=$B$2,ROW(Activité)-MIN(ROW(Activité))+1),ROWS($B$3:B20)))&\" \"&CHAR(10)&(INDEX(Résultat,SMALL(IF(Cible=$B$2,ROW(Résultat)-MIN(ROW(Résultat))+1),ROWS($B$3:B20))))&CHAR(10),\"\")","v":""},null,{"$f":"IFERROR(INDEX(Activité,SMALL(IF(Cible=$D$2,ROW(Activité)-MIN(ROW(Activité))+1),ROWS($B$3:B20)))&CHAR(10),\"\")","v":""},null,{"$f":"IFERROR(INDEX(Activité,SMALL(IF(Cible=$F$2,ROW(Activité)-MIN(ROW(Activité))+1),ROWS($B$3:B20)))&CHAR(10),\"\")","v":""},null,{"$f":"IFERROR(INDEX(Activité,SMALL(IF(Cible=$H$2,ROW(Activité)-MIN(ROW(Activité))+1),ROWS($B$3:B20)))&CHAR(10),\"\")","v":""}]
[null,{"$f":"IFERROR(INDEX(Activité,SMALL(IF(Cible=$B$2,ROW(Activité)-MIN(ROW(Activité))+1),ROWS($B$3:B21)))&\" \"&CHAR(10)&(INDEX(Résultat,SMALL(IF(Cible=$B$2,ROW(Résultat)-MIN(ROW(Résultat))+1),ROWS($B$3:B21))))&CHAR(10),\"\")","v":""},null,{"$f":"IFERROR(INDEX(Activité,SMALL(IF(Cible=$D$2,ROW(Activité)-MIN(ROW(Activité))+1),ROWS($B$3:B21)))&CHAR(10),\"\")","v":""},null,{"$f":"IFERROR(INDEX(Activité,SMALL(IF(Cible=$F$2,ROW(Activité)-MIN(ROW(Activité))+1),ROWS($B$3:B21)))&CHAR(10),\"\")","v":""},null,{"$f":"IFERROR(INDEX(Activité,SMALL(IF(Cible=$H$2,ROW(Activité)-MIN(ROW(Activité))+1),ROWS($B$3:B21)))&CHAR(10),\"\")","v":""}]
[null,{"$f":"IFERROR(INDEX(Activité,SMALL(IF(Cible=$B$2,ROW(Activité)-MIN(ROW(Activité))+1),ROWS($B$3:B22)))&\" \"&CHAR(10)&(INDEX(Résultat,SMALL(IF(Cible=$B$2,ROW(Résultat)-MIN(ROW(Résultat))+1),ROWS($B$3:B22))))&CHAR(10),\"\")","v":""},null,{"$f":"IFERROR(INDEX(Activité,SMALL(IF(Cible=$D$2,ROW(Activité)-MIN(ROW(Activité))+1),ROWS($B$3:B22)))&CHAR(10),\"\")","v":""},null,{"$f":"IFERROR(INDEX(Activité,SMALL(IF(Cible=$F$2,ROW(Activité)-MIN(ROW(Activité))+1),ROWS($B$3:B22)))&CHAR(10),\"\")","v":""},null,{"$f":"IFERROR(INDEX(Activité,SMALL(IF(Cible=$H$2,ROW(Activité)-MIN(ROW(Activité))+1),ROWS($B$3:B22)))&CHAR(10),\"\")","v":""}]
[null,{"$f":"IFERROR(INDEX(Activité,SMALL(IF(Cible=$B$2,ROW(Activité)-MIN(ROW(Activité))+1),ROWS($B$3:B23)))&\" \"&CHAR(10)&(INDEX(Résultat,SMALL(IF(Cible=$B$2,ROW(Résultat)-MIN(ROW(Résultat))+1),ROWS($B$3:B23))))&CHAR(10),\"\")","v":""},null,{"$f":"IFERROR(INDEX(Activité,SMALL(IF(Cible=$D$2,ROW(Activité)-MIN(ROW(Activité))+1),ROWS($B$3:B23)))&CHAR(10),\"\")","v":""},null,{"$f":"IFERROR(INDEX(Activité,SMALL(IF(Cible=$F$2,ROW(Activité)-MIN(ROW(Activité))+1),ROWS($B$3:B23)))&CHAR(10),\"\")","v":""},null,{"$f":"IFERROR(INDEX(Activité,SMALL(IF(Cible=$H$2,ROW(Activité)-MIN(ROW(Activité))+1),ROWS($B$3:B23)))&CHAR(10),\"\")","v":""}]
[null,{"$f":"IFERROR(INDEX(Activité,SMALL(IF(Cible=$B$2,ROW(Activité)-MIN(ROW(Activité))+1),ROWS($B$3:B24)))&\" \"&CHAR(10)&(INDEX(Résultat,SMALL(IF(Cible=$B$2,ROW(Résultat)-MIN(ROW(Résultat))+1),ROWS($B$3:B24))))&CHAR(10),\"\")","v":""},null,{"$f":"IFERROR(INDEX(Activité,SMALL(IF(Cible=$D$2,ROW(Activité)-MIN(ROW(Activité))+1),ROWS($B$3:B24)))&CHAR(10),\"\")","v":""},null,{"$f":"IFERROR(INDEX(Activité,SMALL(IF(Cible=$F$2,ROW(Activité)-MIN(ROW(Activité))+1),ROWS($B$3:B24)))&CHAR(10),\"\")","v":""},null,{"$f":"IFERROR(INDEX(Activité,SMALL(IF(Cible=$H$2,ROW(Activité)-MIN(ROW(Activité))+1),ROWS($B$3:B24)))&CHAR(10),\"\")","v":""}]
[null,{"$f":"IFERROR(INDEX(Activité,SMALL(IF(Cible=$B$2,ROW(Activité)-MIN(ROW(Activité))+1),ROWS($B$3:B25)))&\" \"&CHAR(10)&(INDEX(Résultat,SMALL(IF(Cible=$B$2,ROW(Résultat)-MIN(ROW(Résultat))+1),ROWS($B$3:B25))))&CHAR(10),\"\")","v":""},null,{"$f":"IFERROR(INDEX(Activité,SMALL(IF(Cible=$D$2,ROW(Activité)-MIN(ROW(Activité))+1),ROWS($B$3:B25)))&CHAR(10),\"\")","v":""},null,{"$f":"IFERROR(INDEX(Activité,SMALL(IF(Cible=$F$2,ROW(Activité)-MIN(ROW(Activité))+1),ROWS($B$3:B25)))&CHAR(10),\"\")","v":""},null,{"$f":"IFERROR(INDEX(Activité,SMALL(IF(Cible=$H$2,ROW(Activité)-MIN(ROW(Activité))+1),ROWS($B$3:B25)))&CHAR(10),\"\")","v":""}]
[null,{"$f":"IFERROR(INDEX(Activité,SMALL(IF(Cible=$B$2,ROW(Activité)-MIN(ROW(Activité))+1),ROWS($B$3:B26)))&\" \"&CHAR(10)&(INDEX(Résultat,SMALL(IF(Cible=$B$2,ROW(Résultat)-MIN(ROW(Résultat))+1),ROWS($B$3:B26))))&CHAR(10),\"\")","v":""},null,{"$f":"IFERROR(INDEX(Activité,SMALL(IF(Cible=$D$2,ROW(Activité)-MIN(ROW(Activité))+1),ROWS($B$3:B26)))&CHAR(10),\"\")","v":""},null,{"$f":"IFERROR(INDEX(Activité,SMALL(IF(Cible=$F$2,ROW(Activité)-MIN(ROW(Activité))+1),ROWS($B$3:B26)))&CHAR(10),\"\")","v":""},null,{"$f":"IFERROR(INDEX(Activité,SMALL(IF(Cible=$H$2,ROW(Activité)-MIN(ROW(Activité))+1),ROWS($B$3:B26)))&CHAR(10),\"\")","v":""}]
[null,{"$f":"IFERROR(INDEX(Activité,SMALL(IF(Cible=$B$2,ROW(Activité)-MIN(ROW(Activité))+1),ROWS($B$3:B27)))&\" \"&CHAR(10)&(INDEX(Résultat,SMALL(IF(Cible=$B$2,ROW(Résultat)-MIN(ROW(Résultat))+1),ROWS($B$3:B27))))&CHAR(10),\"\")","v":""},null,{"$f":"IFERROR(INDEX(Activité,SMALL(IF(Cible=$D$2,ROW(Activité)-MIN(ROW(Activité))+1),ROWS($B$3:B27)))&CHAR(10),\"\")","v":""},null,{"$f":"IFERROR(INDEX(Activité,SMALL(IF(Cible=$F$2,ROW(Activité)-MIN(ROW(Activité))+1),ROWS($B$3:B27)))&CHAR(10),\"\")","v":""},null,{"$f":"IFERROR(INDEX(Activité,SMALL(IF(Cible=$H$2,ROW(Activité)-MIN(ROW(Activité))+1),ROWS($B$3:B27)))&CHAR(10),\"\")","v":""}]
[null,{"$f":"IFERROR(INDEX(Activité,SMALL(IF(Cible=$B$2,ROW(Activité)-MIN(ROW(Activité))+1),ROWS($B$3:B28)))&\" \"&CHAR(10)&(INDEX(Résultat,SMALL(IF(Cible=$B$2,ROW(Résultat)-MIN(ROW(Résultat))+1),ROWS($B$3:B28))))&CHAR(10),\"\")","v":""},null,{"$f":"IFERROR(INDEX(Activité,SMALL(IF(Cible=$D$2,ROW(Activité)-MIN(ROW(Activité))+1),ROWS($B$3:B28)))&CHAR(10),\"\")","v":""},null,{"$f":"IFERROR(INDEX(Activité,SMALL(IF(Cible=$F$2,ROW(Activité)-MIN(ROW(Activité))+1),ROWS($B$3:B28)))&CHAR(10),\"\")","v":""},null,{"$f":"IFERROR(INDEX(Activité,SMALL(IF(Cible=$H$2,ROW(Activité)-MIN(ROW(Activité))+1),ROWS($B$3:B28)))&CHAR(10),\"\")","v":""}]
[null,{"$f":"IFERROR(INDEX(Activité,SMALL(IF(Cible=$B$2,ROW(Activité)-MIN(ROW(Activité))+1),ROWS($B$3:B29)))&\" \"&CHAR(10)&(INDEX(Résultat,SMALL(IF(Cible=$B$2,ROW(Résultat)-MIN(ROW(Résultat))+1),ROWS($B$3:B29))))&CHAR(10),\"\")","v":""},null,{"$f":"IFERROR(INDEX(Activité,SMALL(IF(Cible=$D$2,ROW(Activité)-MIN(ROW(Activité))+1),ROWS($B$3:B29)))&CHAR(10),\"\")","v":""},null,{"$f":"IFERROR(INDEX(Activité,SMALL(IF(Cible=$F$2,ROW(Activité)-MIN(ROW(Activité))+1),ROWS($B$3:B29)))&CHAR(10),\"\")","v":""},null,{"$f":"IFERROR(INDEX(Activité,SMALL(IF(Cible=$H$2,ROW(Activité)-MIN(ROW(Activité))+1),ROWS($B$3:B29)))&CHAR(10),\"\")","v":""}]
[null,{"$f":"IFERROR(INDEX(Activité,SMALL(IF(Cible=$B$2,ROW(Activité)-MIN(ROW(Activité))+1),ROWS($B$3:B30)))&\" \"&CHAR(10)&(INDEX(Résultat,SMALL(IF(Cible=$B$2,ROW(Résultat)-MIN(ROW(Résultat))+1),ROWS($B$3:B30))))&CHAR(10),\"\")","v":""},null,{"$f":"IFERROR(INDEX(Activité,SMALL(IF(Cible=$D$2,ROW(Activité)-MIN(ROW(Activité))+1),ROWS($B$3:B30)))&CHAR(10),\"\")","v":""},null,{"$f":"IFERROR(INDEX(Activité,SMALL(IF(Cible=$F$2,ROW(Activité)-MIN(ROW(Activité))+1),ROWS($B$3:B30)))&CHAR(10),\"\")","v":""},null,{"$f":"IFERROR(INDEX(Activité,SMALL(IF(Cible=$H$2,ROW(Activité)-MIN(ROW(Activité))+1),ROWS($B$3:B30)))&CHAR(10),\"\")","v":""}]
[null,{"$f":"IFERROR(INDEX(Activité,SMALL(IF(Cible=$B$2,ROW(Activité)-MIN(ROW(Activité))+1),ROWS($B$3:B31)))&\" \"&CHAR(10)&(INDEX(Résultat,SMALL(IF(Cible=$B$2,ROW(Résultat)-MIN(ROW(Résultat))+1),ROWS($B$3:B31))))&CHAR(10),\"\")","v":""},null,{"$f":"IFERROR(INDEX(Activité,SMALL(IF(Cible=$D$2,ROW(Activité)-MIN(ROW(Activité))+1),ROWS($B$3:B31)))&CHAR(10),\"\")","v":""},null,{"$f":"IFERROR(INDEX(Activité,SMALL(IF(Cible=$F$2,ROW(Activité)-MIN(ROW(Activité))+1),ROWS($B$3:B31)))&CHAR(10),\"\")","v":""},null,{"$f":"IFERROR(INDEX(Activité,SMALL(IF(Cible=$H$2,ROW(Activité)-MIN(ROW(Activité))+1),ROWS($B$3:B31)))&CHAR(10),\"\")","v":""}]
[null,{"$f":"IFERROR(INDEX(Activité,SMALL(IF(Cible=$B$2,ROW(Activité)-MIN(ROW(Activité))+1),ROWS($B$3:B32)))&\" \"&CHAR(10)&(INDEX(Résultat,SMALL(IF(Cible=$B$2,ROW(Résultat)-MIN(ROW(Résultat))+1),ROWS($B$3:B32))))&CHAR(10),\"\")","v":""},null,{"$f":"IFERROR(INDEX(Activité,SMALL(IF(Cible=$D$2,ROW(Activité)-MIN(ROW(Activité))+1),ROWS($B$3:B32)))&CHAR(10),\"\")","v":""},null,{"$f":"IFERROR(INDEX(Activité,SMALL(IF(Cible=$F$2,ROW(Activité)-MIN(ROW(Activité))+1),ROWS($B$3:B32)))&CHAR(10),\"\")","v":""},null,{"$f":"IFERROR(INDEX(Activité,SMALL(IF(Cible=$H$2,ROW(Activité)-MIN(ROW(Activité))+1),ROWS($B$3:B32)))&CHAR(10),\"\")","v":""}]
[null,{"$f":"IFERROR(INDEX(Activité,SMALL(IF(Cible=$B$2,ROW(Activité)-MIN(ROW(Activité))+1),ROWS($B$3:B33)))&\" \"&CHAR(10)&(INDEX(Résultat,SMALL(IF(Cible=$B$2,ROW(Résultat)-MIN(ROW(Résultat))+1),ROWS($B$3:B33))))&CHAR(10),\"\")","v":""},null,{"$f":"IFERROR(INDEX(Activité,SMALL(IF(Cible=$D$2,ROW(Activité)-MIN(ROW(Activité))+1),ROWS($B$3:B33)))&CHAR(10),\"\")","v":""},null,{"$f":"IFERROR(INDEX(Activité,SMALL(IF(Cible=$F$2,ROW(Activité)-MIN(ROW(Activité))+1),ROWS($B$3:B33)))&CHAR(10),\"\")","v":""},null,{"$f":"IFERROR(INDEX(Activité,SMALL(IF(Cible=$H$2,ROW(Activité)-MIN(ROW(Activité))+1),ROWS($B$3:B33)))&CHAR(10),\"\")","v":""}]
[null,{"$f":"IFERROR(INDEX(Activité,SMALL(IF(Cible=$B$2,ROW(Activité)-MIN(ROW(Activité))+1),ROWS($B$3:B34)))&\" \"&CHAR(10)&(INDEX(Résultat,SMALL(IF(Cible=$B$2,ROW(Résultat)-MIN(ROW(Résultat))+1),ROWS($B$3:B34))))&CHAR(10),\"\")","v":""},null,{"$f":"IFERROR(INDEX(Activité,SMALL(IF(Cible=$D$2,ROW(Activité)-MIN(ROW(Activité))+1),ROWS($B$3:B34)))&CHAR(10),\"\")","v":""},null,{"$f":"IFERROR(INDEX(Activité,SMALL(IF(Cible=$F$2,ROW(Activité)-MIN(ROW(Activité))+1),ROWS($B$3:B34)))&CHAR(10),\"\")","v":""},null,{"$f":"IFERROR(INDEX(Activité,SMALL(IF(Cible=$H$2,ROW(Activité)-MIN(ROW(Activité))+1),ROWS($B$3:B34)))&CHAR(10),\"\")","v":""}]
[null,{"$f":"IFERROR(INDEX(Activité,SMALL(IF(Cible=$B$2,ROW(Activité)-MIN(ROW(Activité))+1),ROWS($B$3:B35)))&\" \"&CHAR(10)&(INDEX(Résultat,SMALL(IF(Cible=$B$2,ROW(Résultat)-MIN(ROW(Résultat))+1),ROWS($B$3:B35))))&CHAR(10),\"\")","v":""},null,{"$f":"IFERROR(INDEX(Activité,SMALL(IF(Cible=$D$2,ROW(Activité)-MIN(ROW(Activité))+1),ROWS($B$3:B35)))&CHAR(10),\"\")","v":""},null,{"$f":"IFERROR(INDEX(Activité,SMALL(IF(Cible=$F$2,ROW(Activité)-MIN(ROW(Activité))+1),ROWS($B$3:B35)))&CHAR(10),\"\")","v":""},null,{"$f":"IFERROR(INDEX(Activité,SMALL(IF(Cible=$H$2,ROW(Activité)-MIN(ROW(Activité))+1),ROWS($B$3:B35)))&CHAR(10),\"\")","v":""}]
[null,{"$f":"IFERROR(INDEX(Activité,SMALL(IF(Cible=$B$2,ROW(Activité)-MIN(ROW(Activité))+1),ROWS($B$3:B36)))&\" \"&CHAR(10)&(INDEX(Résultat,SMALL(IF(Cible=$B$2,ROW(Résultat)-MIN(ROW(Résultat))+1),ROWS($B$3:B36))))&CHAR(10),\"\")","v":""},null,{"$f":"IFERROR(INDEX(Activité,SMALL(IF(Cible=$D$2,ROW(Activité)-MIN(ROW(Activité))+1),ROWS($B$3:B36)))&CHAR(10),\"\")","v":""},null,{"$f":"IFERROR(INDEX(Activité,SMALL(IF(Cible=$F$2,ROW(Activité)-MIN(ROW(Activité))+1),ROWS($B$3:B36)))&CHAR(10),\"\")","v":""},null,{"$f":"IFERROR(INDEX(Activité,SMALL(IF(Cible=$H$2,ROW(Activité)-MIN(ROW(Activité))+1),ROWS($B$3:B36)))&CHAR(10),\"\")","v":""}]
[null,{"$f":"IFERROR(INDEX(Activité,SMALL(IF(Cible=$B$2,ROW(Activité)-MIN(ROW(Activité))+1),ROWS($B$3:B37)))&\" \"&CHAR(10)&(INDEX(Résultat,SMALL(IF(Cible=$B$2,ROW(Résultat)-MIN(ROW(Résultat))+1),ROWS($B$3:B37))))&CHAR(10),\"\")","v":""},null,{"$f":"IFERROR(INDEX(Activité,SMALL(IF(Cible=$D$2,ROW(Activité)-MIN(ROW(Activité))+1),ROWS($B$3:B37)))&CHAR(10),\"\")","v":""},null,{"$f":"IFERROR(INDEX(Activité,SMALL(IF(Cible=$F$2,ROW(Activité)-MIN(ROW(Activité))+1),ROWS($B$3:B37)))&CHAR(10),\"\")","v":""},null,{"$f":"IFERROR(INDEX(Activité,SMALL(IF(Cible=$H$2,ROW(Activité)-MIN(ROW(Activité))+1),ROWS($B$3:B37)))&CHAR(10),\"\")","v":""}]
[null,{"$f":"IFERROR(INDEX(Activité,SMALL(IF(Cible=$B$2,ROW(Activité)-MIN(ROW(Activité))+1),ROWS($B$3:B38)))&\" \"&CHAR(10)&(INDEX(Résultat,SMALL(IF(Cible=$B$2,ROW(Résultat)-MIN(ROW(Résultat))+1),ROWS($B$3:B38))))&CHAR(10),\"\")","v":""},null,{"$f":"IFERROR(INDEX(Activité,SMALL(IF(Cible=$D$2,ROW(Activité)-MIN(ROW(Activité))+1),ROWS($B$3:B38)))&CHAR(10),\"\")","v":""},null,{"$f":"IFERROR(INDEX(Activité,SMALL(IF(Cible=$F$2,ROW(Activité)-MIN(ROW(Activité))+1),ROWS($B$3:B38)))&CHAR(10),\"\")","v":""},null,{"$f":"IFERROR(INDEX(Activité,SMALL(IF(Cible=$H$2,ROW(Activité)-MIN(ROW(Activité))+1),ROWS($B$3:B38)))&CHAR(10),\"\")","v":""}]
[null,{"$f":"IFERROR(INDEX(Activité,SMALL(IF(Cible=$B$2,ROW(Activité)-MIN(ROW(Activité))+1),ROWS($B$3:B39)))&\" \"&CHAR(10)&(INDEX(Résultat,SMALL(IF(Cible=$B$2,ROW(Résultat)-MIN(ROW(Résultat))+1),ROWS($B$3:B39))))&CHAR(10),\"\")","v":""},null,{"$f":"IFERROR(INDEX(Activité,SMALL(IF(Cible=$D$2,ROW(Activité)-MIN(ROW(Activité))+1),ROWS($B$3:B39)))&CHAR(10),\"\")","v":""},null,{"$f":"IFERROR(INDEX(Activité,SMALL(IF(Cible=$F$2,ROW(Activité)-MIN(ROW(Activité))+1),ROWS($B$3:B39)))&CHAR(10),\"\")","v":""},null,{"$f":"IFERROR(INDEX(Activité,SMALL(IF(Cible=$H$2,ROW(Activité)-MIN(ROW(Activité))+1),ROWS($B$3:B39)))&CHAR(10),\"\")","v":""}]
[null,{"$f":"IFERROR(INDEX(Activité,SMALL(IF(Cible=$B$2,ROW(Activité)-MIN(ROW(Activité))+1),ROWS($B$3:B40)))&\" \"&CHAR(10)&(INDEX(Résultat,SMALL(IF(Cible=$B$2,ROW(Résultat)-MIN(ROW(Résultat))+1),ROWS($B$3:B40))))&CHAR(10),\"\")","v":""},null,{"$f":"IFERROR(INDEX(Activité,SMALL(IF(Cible=$D$2,ROW(Activité)-MIN(ROW(Activité))+1),ROWS($B$3:B40)))&CHAR(10),\"\")","v":""},null,{"$f":"IFERROR(INDEX(Activité,SMALL(IF(Cible=$F$2,ROW(Activité)-MIN(ROW(Activité))+1),ROWS($B$3:B40)))&CHAR(10),\"\")","v":""},null,{"$f":"IFERROR(INDEX(Activité,SMALL(IF(Cible=$H$2,ROW(Activité)-MIN(ROW(Activité))+1),ROWS($B$3:B40)))&CHAR(10),\"\")","v":""}]
[null,{"$f":"IFERROR(INDEX(Activité,SMALL(IF(Cible=$B$2,ROW(Activité)-MIN(ROW(Activité))+1),ROWS($B$3:B41)))&\" \"&CHAR(10)&(INDEX(Résultat,SMALL(IF(Cible=$B$2,ROW(Résultat)-MIN(ROW(Résultat))+1),ROWS($B$3:B41))))&CHAR(10),\"\")","v":""},null,{"$f":"IFERROR(INDEX(Activité,SMALL(IF(Cible=$D$2,ROW(Activité)-MIN(ROW(Activité))+1),ROWS($B$3:B41)))&CHAR(10),\"\")","v":""},null,{"$f":"IFERROR(INDEX(Activité,SMALL(IF(Cible=$F$2,ROW(Activité)-MIN(ROW(Activité))+1),ROWS($B$3:B41)))&CHAR(10),\"\")","v":""},null,{"$f":"IFERROR(INDEX(Activité,SMALL(IF(Cible=$H$2,ROW(Activité)-MIN(ROW(Activité))+1),ROWS($B$3:B41)))&CHAR(10),\"\")","v":""}]
[null,{"$f":"IFERROR(INDEX(Activité,SMALL(IF(Cible=$B$2,ROW(Activité)-MIN(ROW(Activité))+1),ROWS($B$3:B42)))&\" \"&CHAR(10)&(INDEX(Résultat,SMALL(IF(Cible=$B$2,ROW(Résultat)-MIN(ROW(Résultat))+1),ROWS($B$3:B42))))&CHAR(10),\"\")","v":""},null,{"$f":"IFERROR(INDEX(Activité,SMALL(IF(Cible=$D$2,ROW(Activité)-MIN(ROW(Activité))+1),ROWS($B$3:B42)))&CHAR(10),\"\")","v":""},null,{"$f":"IFERROR(INDEX(Activité,SMALL(IF(Cible=$F$2,ROW(Activité)-MIN(ROW(Activité))+1),ROWS($B$3:B42)))&CHAR(10),\"\")","v":""},null,{"$f":"IFERROR(INDEX(Activité,SMALL(IF(Cible=$H$2,ROW(Activité)-MIN(ROW(Activité))+1),ROWS($B$3:B42)))&CHAR(10),\"\")","v":""}]
[null,{"$f":"IFERROR(INDEX(Activité,SMALL(IF(Cible=$B$2,ROW(Activité)-MIN(ROW(Activité))+1),ROWS($B$3:B43)))&\" \"&CHAR(10)&(INDEX(Résultat,SMALL(IF(Cible=$B$2,ROW(Résultat)-MIN(ROW(Résultat))+1),ROWS($B$3:B43))))&CHAR(10),\"\")","v":""},null,{"$f":"IFERROR(INDEX(Activité,SMALL(IF(Cible=$D$2,ROW(Activité)-MIN(ROW(Activité))+1),ROWS($B$3:B43)))&CHAR(10),\"\")","v":""},null,{"$f":"IFERROR(INDEX(Activité,SMALL(IF(Cible=$F$2,ROW(Activité)-MIN(ROW(Activité))+1),ROWS($B$3:B43)))&CHAR(10),\"\")","v":""},null,{"$f":"IFERROR(INDEX(Activité,SMALL(IF(Cible=$H$2,ROW(Activité)-MIN(ROW(Activité))+1),ROWS($B$3:B43)))&CHAR(10),\"\")","v":""}]
[null,{"$f":"IFERROR(INDEX(Activité,SMALL(IF(Cible=$B$2,ROW(Activité)-MIN(ROW(Activité))+1),ROWS($B$3:B44)))&\" \"&CHAR(10)&(INDEX(Résultat,SMALL(IF(Cible=$B$2,ROW(Résultat)-MIN(ROW(Résultat))+1),ROWS($B$3:B44))))&CHAR(10),\"\")","v":""},null,{"$f":"IFERROR(INDEX(Activité,SMALL(IF(Cible=$D$2,ROW(Activité)-MIN(ROW(Activité))+1),ROWS($B$3:B44)))&CHAR(10),\"\")","v":""},null,{"$f":"IFERROR(INDEX(Activité,SMALL(IF(Cible=$F$2,ROW(Activité)-MIN(ROW(Activité))+1),ROWS($B$3:B44)))&CHAR(10),\"\")","v":""},null,{"$f":"IFERROR(INDEX(Activité,SMALL(IF(Cible=$H$2,ROW(Activité)-MIN(ROW(Activité))+1),ROWS($B$3:B44)))&CHAR(10),\"\")","v":""}]
[null,{"$f":"IFERROR(INDEX(Activité,SMALL(IF(Cible=$B$2,ROW(Activité)-MIN(ROW(Activité))+1),ROWS($B$3:B45)))&\" \"&CHAR(10)&(INDEX(Résultat,SMALL(IF(Cible=$B$2,ROW(Résultat)-MIN(ROW(Résultat))+1),ROWS($B$3:B45))))&CHAR(10),\"\")","v":""},null,{"$f":"IFERROR(INDEX(Activité,SMALL(IF(Cible=$D$2,ROW(Activité)-MIN(ROW(Activité))+1),ROWS($B$3:B45)))&CHAR(10),\"\")","v":""},null,{"$f":"IFERROR(INDEX(Activité,SMALL(IF(Cible=$F$2,ROW(Activité)-MIN(ROW(Activité))+1),ROWS($B$3:B45)))&CHAR(10),\"\")","v":""},null,{"$f":"IFERROR(INDEX(Activité,SMALL(IF(Cible=$H$2,ROW(Activité)-MIN(ROW(Activité))+1),ROWS($B$3:B45)))&CHAR(10),\"\")","v":""}]
[null,{"$f":"IFERROR(INDEX(Activité,SMALL(IF(Cible=$B$2,ROW(Activité)-MIN(ROW(Activité))+1),ROWS($B$3:B46)))&\" \"&CHAR(10)&(INDEX(Résultat,SMALL(IF(Cible=$B$2,ROW(Résultat)-MIN(ROW(Résultat))+1),ROWS($B$3:B46))))&CHAR(10),\"\")","v":""},null,{"$f":"IFERROR(INDEX(Activité,SMALL(IF(Cible=$D$2,ROW(Activité)-MIN(ROW(Activité))+1),ROWS($B$3:B46)))&CHAR(10),\"\")","v":""},null,{"$f":"IFERROR(INDEX(Activité,SMALL(IF(Cible=$F$2,ROW(Activité)-MIN(ROW(Activité))+1),ROWS($B$3:B46)))&CHAR(10),\"\")","v":""},null,{"$f":"IFERROR(INDEX(Activité,SMALL(IF(Cible=$H$2,ROW(Activité)-MIN(ROW(Activité))+1),ROWS($B$3:B46)))&CHAR(10),\"\")","v":""}]
[null,{"$f":"IFERROR(INDEX(Activité,SMALL(IF(Cible=$B$2,ROW(Activité)-MIN(ROW(Activité))+1),ROWS($B$3:B47)))&\" \"&CHAR(10)&(INDEX(Résultat,SMALL(IF(Cible=$B$2,ROW(Résultat)-MIN(ROW(Résultat))+1),ROWS($B$3:B47))))&CHAR(10),\"\")","v":""},null,{"$f":"IFERROR(INDEX(Activité,SMALL(IF(Cible=$D$2,ROW(Activité)-MIN(ROW(Activité))+1),ROWS($B$3:B47)))&CHAR(10),\"\")","v":""},null,{"$f":"IFERROR(INDEX(Activité,SMALL(IF(Cible=$F$2,ROW(Activité)-MIN(ROW(Activité))+1),ROWS($B$3:B47)))&CHAR(10),\"\")","v":""},null,{"$f":"IFERROR(INDEX(Activité,SMALL(IF(Cible=$H$2,ROW(Activité)-MIN(ROW(Activité))+1),ROWS($B$3:B47)))&CHAR(10),\"\")","v":""}]
[null,{"$f":"IFERROR(INDEX(Activité,SMALL(IF(Cible=$B$2,ROW(Activité)-MIN(ROW(Activité))+1),ROWS($B$3:B48)))&\" \"&CHAR(10)&(INDEX(Résultat,SMALL(IF(Cible=$B$2,ROW(Résultat)-MIN(ROW(Résultat))+1),ROWS($B$3:B48))))&CHAR(10),\"\")","v":""},null,{"$f":"IFERROR(INDEX(Activité,SMALL(IF(Cible=$D$2,ROW(Activité)-MIN(ROW(Activité))+1),ROWS($B$3:B48)))&CHAR(10),\"\")","v":""},null,{"$f":"IFERROR(INDEX(Activité,SMALL(IF(Cible=$F$2,ROW(Activité)-MIN(ROW(Activité))+1),ROWS($B$3:B48)))&CHAR(10),\"\")","v":""},null,{"$f":"IFERROR(INDEX(Activité,SMALL(IF(Cible=$H$2,ROW(Activité)-MIN(ROW(Activité))+1),ROWS($B$3:B48)))&CHAR(10),\"\")","v":""}]
[null,{"$f":"IFERROR(INDEX(Activité,SMALL(IF(Cible=$B$2,ROW(Activité)-MIN(ROW(Activité))+1),ROWS($B$3:B49)))&\" \"&CHAR(10)&(INDEX(Résultat,SMALL(IF(Cible=$B$2,ROW(Résultat)-MIN(ROW(Résultat))+1),ROWS($B$3:B49))))&CHAR(10),\"\")","v":""},null,{"$f":"IFERROR(INDEX(Activité,SMALL(IF(Cible=$D$2,ROW(Activité)-MIN(ROW(Activité))+1),ROWS($B$3:B49)))&CHAR(10),\"\")","v":""},null,{"$f":"IFERROR(INDEX(Activité,SMALL(IF(Cible=$F$2,ROW(Activité)-MIN(ROW(Activité))+1),ROWS($B$3:B49)))&CHAR(10),\"\")","v":""},null,{"$f":"IFERROR(INDEX(Activité,SMALL(IF(Cible=$H$2,ROW(Activité)-MIN(ROW(Activité))+1),ROWS($B$3:B49)))&CHAR(10),\"\")","v":""}]
[null,{"$f":"IFERROR(INDEX(Activité,SMALL(IF(Cible=$B$2,ROW(Activité)-MIN(ROW(Activité))+1),ROWS($B$3:B50)))&\" \"&CHAR(10)&(INDEX(Résultat,SMALL(IF(Cible=$B$2,ROW(Résultat)-MIN(ROW(Résultat))+1),ROWS($B$3:B50))))&CHAR(10),\"\")","v":""},null,{"$f":"IFERROR(INDEX(Activité,SMALL(IF(Cible=$D$2,ROW(Activité)-MIN(ROW(Activité))+1),ROWS($B$3:B50)))&CHAR(10),\"\")","v":""},null,{"$f":"IFERROR(INDEX(Activité,SMALL(IF(Cible=$F$2,ROW(Activité)-MIN(ROW(Activité))+1),ROWS($B$3:B50)))&CHAR(10),\"\")","v":""},null,{"$f":"IFERROR(INDEX(Activité,SMALL(IF(Cible=$H$2,ROW(Activité)-MIN(ROW(Activité))+1),ROWS($B$3:B50)))&CHAR(10),\"\")","v":""}]
[null,{"$f":"IFERROR(INDEX(Activité,SMALL(IF(Cible=$B$2,ROW(Activité)-MIN(ROW(Activité))+1),ROWS($B$3:B51)))&\" \"&CHAR(10)&(INDEX(Résultat,SMALL(IF(Cible=$B$2,ROW(Résultat)-MIN(ROW(Résultat))+1),ROWS($B$3:B51))))&CHAR(10),\"\")","v":""},null,{"$f":"IFERROR(INDEX(Activité,SMALL(IF(Cible=$D$2,ROW(Activité)-MIN(ROW(Activité))+1),ROWS($B$3:B51)))&CHAR(10),\"\")","v":""},null,{"$f":"IFERROR(INDEX(Activité,SMALL(IF(Cible=$F$2,ROW(Activité)-MIN(ROW(Activité))+1),ROWS($B$3:B51)))&CHAR(10),\"\")","v":""},null,{"$f":"IFERROR(INDEX(Activité,SMALL(IF(Cible=$H$2,ROW(Activité)-MIN(ROW(Activité))+1),ROWS($B$3:B51)))&CHAR(10),\"\")","v":""}]
[null,{"$f":"IFERROR(INDEX(Activité,SMALL(IF(Cible=$B$2,ROW(Activité)-MIN(ROW(Activité))+1),ROWS($B$3:B52)))&\" \"&CHAR(10)&(INDEX(Résultat,SMALL(IF(Cible=$B$2,ROW(Résultat)-MIN(ROW(Résultat))+1),ROWS($B$3:B52))))&CHAR(10),\"\")","v":""},null,{"$f":"IFERROR(INDEX(Activité,SMALL(IF(Cible=$D$2,ROW(Activité)-MIN(ROW(Activité))+1),ROWS($B$3:B52)))&CHAR(10),\"\")","v":""},null,{"$f":"IFERROR(INDEX(Activité,SMALL(IF(Cible=$F$2,ROW(Activité)-MIN(ROW(Activité))+1),ROWS($B$3:B52)))&CHAR(10),\"\")","v":""},null,{"$f":"IFERROR(INDEX(Activité,SMALL(IF(Cible=$H$2,ROW(Activité)-MIN(ROW(Activité))+1),ROWS($B$3:B52)))&CHAR(10),\"\")","v":""}]
[null,{"$f":"IFERROR(INDEX(Activité,SMALL(IF(Cible=$B$2,ROW(Activité)-MIN(ROW(Activité))+1),ROWS($B$3:B53)))&\" \"&CHAR(10)&(INDEX(Résultat,SMALL(IF(Cible=$B$2,ROW(Résultat)-MIN(ROW(Résultat))+1),ROWS($B$3:B53))))&CHAR(10),\"\")","v":""},null,{"$f":"IFERROR(INDEX(Activité,SMALL(IF(Cible=$D$2,ROW(Activité)-MIN(ROW(Activité))+1),ROWS($B$3:B53)))&CHAR(10),\"\")","v":""},null,{"$f":"IFERROR(INDEX(Activité,SMALL(IF(Cible=$F$2,ROW(Activité)-MIN(ROW(Activité))+1),ROWS($B$3:B53)))&CHAR(10),\"\")","v":""},null,{"$f":"IFERROR(INDEX(Activité,SMALL(IF(Cible=$H$2,ROW(Activité)-MIN(ROW(Activité))+1),ROWS($B$3:B53)))&CHAR(10),\"\")","v":""}]
[null,{"$f":"IFERROR(INDEX(Activité,SMALL(IF(Cible=$B$2,ROW(Activité)-MIN(ROW(Activité))+1),ROWS($B$3:B54)))&\" \"&CHAR(10)&(INDEX(Résultat,SMALL(IF(Cible=$B$2,ROW(Résultat)-MIN(ROW(Résultat))+1),ROWS($B$3:B54))))&CHAR(10),\"\")","v":""},null,{"$f":"IFERROR(INDEX(Activité,SMALL(IF(Cible=$D$2,ROW(Activité)-MIN(ROW(Activité))+1),ROWS($B$3:B54)))&CHAR(10),\"\")","v":""},null,{"$f":"IFERROR(INDEX(Activité,SMALL(IF(Cible=$F$2,ROW(Activité)-MIN(ROW(Activité))+1),ROWS($B$3:B54)))&CHAR(10),\"\")","v":""},null,{"$f":"IFERROR(INDEX(Activité,SMALL(IF(Cible=$H$2,ROW(Activité)-MIN(ROW(Activité))+1),ROWS($B$3:B54)))&CHAR(10),\"\")","v":""}]
[null,{"$f":"IFERROR(INDEX(Activité,SMALL(IF(Cible=$B$2,ROW(Activité)-MIN(ROW(Activité))+1),ROWS($B$3:B55)))&\" \"&CHAR(10)&(INDEX(Résultat,SMALL(IF(Cible=$B$2,ROW(Résultat)-MIN(ROW(Résultat))+1),ROWS($B$3:B55))))&CHAR(10),\"\")","v":""},null,{"$f":"IFERROR(INDEX(Activité,SMALL(IF(Cible=$D$2,ROW(Activité)-MIN(ROW(Activité))+1),ROWS($B$3:B55)))&CHAR(10),\"\")","v":""},null,{"$f":"IFERROR(INDEX(Activité,SMALL(IF(Cible=$F$2,ROW(Activité)-MIN(ROW(Activité))+1),ROWS($B$3:B55)))&CHAR(10),\"\")","v":""},null,{"$f":"IFERROR(INDEX(Activité,SMALL(IF(Cible=$H$2,ROW(Activité)-MIN(ROW(Activité))+1),ROWS($B$3:B55)))&CHAR(10),\"\")","v":""}]
[null,{"$f":"IFERROR(INDEX(Activité,SMALL(IF(Cible=$B$2,ROW(Activité)-MIN(ROW(Activité))+1),ROWS($B$3:B56)))&\" \"&CHAR(10)&(INDEX(Résultat,SMALL(IF(Cible=$B$2,ROW(Résultat)-MIN(ROW(Résultat))+1),ROWS($B$3:B56))))&CHAR(10),\"\")","v":""},null,{"$f":"IFERROR(INDEX(Activité,SMALL(IF(Cible=$D$2,ROW(Activité)-MIN(ROW(Activité))+1),ROWS($B$3:B56)))&CHAR(10),\"\")","v":""},null,{"$f":"IFERROR(INDEX(Activité,SMALL(IF(Cible=$F$2,ROW(Activité)-MIN(ROW(Activité))+1),ROWS($B$3:B56)))&CHAR(10),\"\")","v":""},null,{"$f":"IFERROR(INDEX(Activité,SMALL(IF(Cible=$H$2,ROW(Activité)-MIN(ROW(Activité))+1),ROWS($B$3:B56)))&CHAR(10),\"\")","v":""}]
[null,{"$f":"IFERROR(INDEX(Activité,SMALL(IF(Cible=$B$2,ROW(Activité)-MIN(ROW(Activité))+1),ROWS($B$3:B57)))&\" \"&CHAR(10)&(INDEX(Résultat,SMALL(IF(Cible=$B$2,ROW(Résultat)-MIN(ROW(Résultat))+1),ROWS($B$3:B57))))&CHAR(10),\"\")","v":""},null,{"$f":"IFERROR(INDEX(Activité,SMALL(IF(Cible=$D$2,ROW(Activité)-MIN(ROW(Activité))+1),ROWS($B$3:B57)))&CHAR(10),\"\")","v":""},null,{"$f":"IFERROR(INDEX(Activité,SMALL(IF(Cible=$F$2,ROW(Activité)-MIN(ROW(Activité))+1),ROWS($B$3:B57)))&CHAR(10),\"\")","v":""},null,{"$f":"IFERROR(INDEX(Activité,SMALL(IF(Cible=$H$2,ROW(Activité)-MIN(ROW(Activité))+1),ROWS($B$3:B57)))&CHAR(10),\"\")","v":""}]
[null,{"$f":"IFERROR(INDEX(Activité,SMALL(IF(Cible=$B$2,ROW(Activité)-MIN(ROW(Activité))+1),ROWS($B$3:B58)))&\" \"&CHAR(10)&(INDEX(Résultat,SMALL(IF(Cible=$B$2,ROW(Résultat)-MIN(ROW(Résultat))+1),ROWS($B$3:B58))))&CHAR(10),\"\")","v":""},null,{"$f":"IFERROR(INDEX(Activité,SMALL(IF(Cible=$D$2,ROW(Activité)-MIN(ROW(Activité))+1),ROWS($B$3:B58)))&CHAR(10),\"\")","v":""},null,{"$f":"IFERROR(INDEX(Activité,SMALL(IF(Cible=$F$2,ROW(Activité)-MIN(ROW(Activité))+1),ROWS($B$3:B58)))&CHAR(10),\"\")","v":""},null,{"$f":"IFERROR(INDEX(Activité,SMALL(IF(Cible=$H$2,ROW(Activité)-MIN(ROW(Activité))+1),ROWS($B$3:B58)))&CHAR(10),\"\")","v":""}]
[null,{"$f":"IFERROR(INDEX(Activité,SMALL(IF(Cible=$B$2,ROW(Activité)-MIN(ROW(Activité))+1),ROWS($B$3:B59)))&\" \"&CHAR(10)&(INDEX(Résultat,SMALL(IF(Cible=$B$2,ROW(Résultat)-MIN(ROW(Résultat))+1),ROWS($B$3:B59))))&CHAR(10),\"\")","v":""},null,{"$f":"IFERROR(INDEX(Activité,SMALL(IF(Cible=$D$2,ROW(Activité)-MIN(ROW(Activité))+1),ROWS($B$3:B59)))&CHAR(10),\"\")","v":""},null,{"$f":"IFERROR(INDEX(Activité,SMALL(IF(Cible=$F$2,ROW(Activité)-MIN(ROW(Activité))+1),ROWS($B$3:B59)))&CHAR(10),\"\")","v":""},null,{"$f":"IFERROR(INDEX(Activité,SMALL(IF(Cible=$H$2,ROW(Activité)-MIN(ROW(Activité))+1),ROWS($B$3:B59)))&CHAR(10),\"\")","v":""}]
[null,{"$f":"IFERROR(INDEX(Activité,SMALL(IF(Cible=$B$2,ROW(Activité)-MIN(ROW(Activité))+1),ROWS($B$3:B60)))&\" \"&CHAR(10)&(INDEX(Résultat,SMALL(IF(Cible=$B$2,ROW(Résultat)-MIN(ROW(Résultat))+1),ROWS($B$3:B60))))&CHAR(10),\"\")","v":""},null,{"$f":"IFERROR(INDEX(Activité,SMALL(IF(Cible=$D$2,ROW(Activité)-MIN(ROW(Activité))+1),ROWS($B$3:B60)))&CHAR(10),\"\")","v":""},null,{"$f":"IFERROR(INDEX(Activité,SMALL(IF(Cible=$F$2,ROW(Activité)-MIN(ROW(Activité))+1),ROWS($B$3:B60)))&CHAR(10),\"\")","v":""},null,{"$f":"IFERROR(INDEX(Activité,SMALL(IF(Cible=$H$2,ROW(Activité)-MIN(ROW(Activité))+1),ROWS($B$3:B60)))&CHAR(10),\"\")","v":""}]
[null,{"$f":"IFERROR(INDEX(Activité,SMALL(IF(Cible=$B$2,ROW(Activité)-MIN(ROW(Activité))+1),ROWS($B$3:B61)))&\" \"&CHAR(10)&(INDEX(Résultat,SMALL(IF(Cible=$B$2,ROW(Résultat)-MIN(ROW(Résultat))+1),ROWS($B$3:B61))))&CHAR(10),\"\")","v":""},null,{"$f":"IFERROR(INDEX(Activité,SMALL(IF(Cible=$D$2,ROW(Activité)-MIN(ROW(Activité))+1),ROWS($B$3:B61)))&CHAR(10),\"\")","v":""},null,{"$f":"IFERROR(INDEX(Activité,SMALL(IF(Cible=$F$2,ROW(Activité)-MIN(ROW(Activité))+1),ROWS($B$3:B61)))&CHAR(10),\"\")","v":""},null,{"$f":"IFERROR(INDEX(Activité,SMALL(IF(Cible=$H$2,ROW(Activité)-MIN(ROW(Activité))+1),ROWS($B$3:B61)))&CHAR(10),\"\")","v":""}]
[null,{"$f":"IFERROR(INDEX(Activité,SMALL(IF(Cible=$B$2,ROW(Activité)-MIN(ROW(Activité))+1),ROWS($B$3:B62)))&\" \"&CHAR(10)&(INDEX(Résultat,SMALL(IF(Cible=$B$2,ROW(Résultat)-MIN(ROW(Résultat))+1),ROWS($B$3:B62))))&CHAR(10),\"\")","v":""},null,{"$f":"IFERROR(INDEX(Activité,SMALL(IF(Cible=$D$2,ROW(Activité)-MIN(ROW(Activité))+1),ROWS($B$3:B62)))&CHAR(10),\"\")","v":""},null,{"$f":"IFERROR(INDEX(Activité,SMALL(IF(Cible=$F$2,ROW(Activité)-MIN(ROW(Activité))+1),ROWS($B$3:B62)))&CHAR(10),\"\")","v":""},null,{"$f":"IFERROR(INDEX(Activité,SMALL(IF(Cible=$H$2,ROW(Activité)-MIN(ROW(Activité))+1),ROWS($B$3:B62)))&CHAR(10),\"\")","v":""}]
[null,{"$f":"IFERROR(INDEX(Activité,SMALL(IF(Cible=$B$2,ROW(Activité)-MIN(ROW(Activité))+1),ROWS($B$3:B63)))&\" \"&CHAR(10)&(INDEX(Résultat,SMALL(IF(Cible=$B$2,ROW(Résultat)-MIN(ROW(Résultat))+1),ROWS($B$3:B63))))&CHAR(10),\"\")","v":""},null,{"$f":"IFERROR(INDEX(Activité,SMALL(IF(Cible=$D$2,ROW(Activité)-MIN(ROW(Activité))+1),ROWS($B$3:B63)))&CHAR(10),\"\")","v":""},null,{"$f":"IFERROR(INDEX(Activité,SMALL(IF(Cible=$F$2,ROW(Activité)-MIN(ROW(Activité))+1),ROWS($B$3:B63)))&CHAR(10),\"\")","v":""},null,{"$f":"IFERROR(INDEX(Activité,SMALL(IF(Cible=$H$2,ROW(Activité)-MIN(ROW(Activité))+1),ROWS($B$3:B63)))&CHAR(10),\"\")","v":""}]
[null,{"$f":"IFERROR(INDEX(Activité,SMALL(IF(Cible=$B$2,ROW(Activité)-MIN(ROW(Activité))+1),ROWS($B$3:B64)))&\" \"&CHAR(10)&(INDEX(Résultat,SMALL(IF(Cible=$B$2,ROW(Résultat)-MIN(ROW(Résultat))+1),ROWS($B$3:B64))))&CHAR(10),\"\")","v":""},null,{"$f":"IFERROR(INDEX(Activité,SMALL(IF(Cible=$D$2,ROW(Activité)-MIN(ROW(Activité))+1),ROWS($B$3:B64)))&CHAR(10),\"\")","v":""},null,{"$f":"IFERROR(INDEX(Activité,SMALL(IF(Cible=$F$2,ROW(Activité)-MIN(ROW(Activité))+1),ROWS($B$3:B64)))&CHAR(10),\"\")","v":""},null,{"$f":"IFERROR(INDEX(Activité,SMALL(IF(Cible=$H$2,ROW(Activité)-MIN(ROW(Activité))+1),ROWS($B$3:B64)))&CHAR(10),\"\")","v":""}]
[null,{"$f":"IFERROR(INDEX(Activité,SMALL(IF(Cible=$B$2,ROW(Activité)-MIN(ROW(Activité))+1),ROWS($B$3:B65)))&\" \"&CHAR(10)&(INDEX(Résultat,SMALL(IF(Cible=$B$2,ROW(Résultat)-MIN(ROW(Résultat))+1),ROWS($B$3:B65))))&CHAR(10),\"\")","v":""},null,{"$f":"IFERROR(INDEX(Activité,SMALL(IF(Cible=$D$2,ROW(Activité)-MIN(ROW(Activité))+1),ROWS($B$3:B65)))&CHAR(10),\"\")","v":""},null,{"$f":"IFERROR(INDEX(Activité,SMALL(IF(Cible=$F$2,ROW(Activité)-MIN(ROW(Activité))+1),ROWS($B$3:B65)))&CHAR(10),\"\")","v":""},null,{"$f":"IFERROR(INDEX(Activité,SMALL(IF(Cible=$H$2,ROW(Activité)-MIN(ROW(Activité))+1),ROWS($B$3:B65)))&CHAR(10),\"\")","v":""}]
[null,{"$f":"IFERROR(INDEX(Activité,SMALL(IF(Cible=$B$2,ROW(Activité)-MIN(ROW(Activité))+1),ROWS($B$3:B66)))&\" \"&CHAR(10)&(INDEX(Résultat,SMALL(IF(Cible=$B$2,ROW(Résultat)-MIN(ROW(Résultat))+1),ROWS($B$3:B66))))&CHAR(10),\"\")","v":""},null,{"$f":"IFERROR(INDEX(Activité,SMALL(IF(Cible=$D$2,ROW(Activité)-MIN(ROW(Activité))+1),ROWS($B$3:B66)))&CHAR(10),\"\")","v":""},null,{"$f":"IFERROR(INDEX(Activité,SMALL(IF(Cible=$F$2,ROW(Activité)-MIN(ROW(Activité))+1),ROWS($B$3:B66)))&CHAR(10),\"\")","v":""},null,{"$f":"IFERROR(INDEX(Activité,SMALL(IF(Cible=$H$2,ROW(Activité)-MIN(ROW(Activité))+1),ROWS($B$3:B66)))&CHAR(10),\"\")","v":""}]
[null,{"$f":"IFERROR(INDEX(Activité,SMALL(IF(Cible=$B$2,ROW(Activité)-MIN(ROW(Activité))+1),ROWS($B$3:B67)))&\" \"&CHAR(10)&(INDEX(Résultat,SMALL(IF(Cible=$B$2,ROW(Résultat)-MIN(ROW(Résultat))+1),ROWS($B$3:B67))))&CHAR(10),\"\")","v":""},null,{"$f":"IFERROR(INDEX(Activité,SMALL(IF(Cible=$D$2,ROW(Activité)-MIN(ROW(Activité))+1),ROWS($B$3:B67)))&CHAR(10),\"\")","v":""},null,{"$f":"IFERROR(INDEX(Activité,SMALL(IF(Cible=$F$2,ROW(Activité)-MIN(ROW(Activité))+1),ROWS($B$3:B67)))&CHAR(10),\"\")","v":""},null,{"$f":"IFERROR(INDEX(Activité,SMALL(IF(Cible=$H$2,ROW(Activité)-MIN(ROW(Activité))+1),ROWS($B$3:B67)))&CHAR(10),\"\")","v":""}]
[null,{"$f":"IFERROR(INDEX(Activité,SMALL(IF(Cible=$B$2,ROW(Activité)-MIN(ROW(Activité))+1),ROWS($B$3:B68)))&\" \"&CHAR(10)&(INDEX(Résultat,SMALL(IF(Cible=$B$2,ROW(Résultat)-MIN(ROW(Résultat))+1),ROWS($B$3:B68))))&CHAR(10),\"\")","v":""},null,{"$f":"IFERROR(INDEX(Activité,SMALL(IF(Cible=$D$2,ROW(Activité)-MIN(ROW(Activité))+1),ROWS($B$3:B68)))&CHAR(10),\"\")","v":""},null,{"$f":"IFERROR(INDEX(Activité,SMALL(IF(Cible=$F$2,ROW(Activité)-MIN(ROW(Activité))+1),ROWS($B$3:B68)))&CHAR(10),\"\")","v":""},null,{"$f":"IFERROR(INDEX(Activité,SMALL(IF(Cible=$H$2,ROW(Activité)-MIN(ROW(Activité))+1),ROWS($B$3:B68)))&CHAR(10),\"\")","v":""}]
[null,{"$f":"IFERROR(INDEX(Activité,SMALL(IF(Cible=$B$2,ROW(Activité)-MIN(ROW(Activité))+1),ROWS($B$3:B69)))&\" \"&CHAR(10)&(INDEX(Résultat,SMALL(IF(Cible=$B$2,ROW(Résultat)-MIN(ROW(Résultat))+1),ROWS($B$3:B69))))&CHAR(10),\"\")","v":""},null,{"$f":"IFERROR(INDEX(Activité,SMALL(IF(Cible=$D$2,ROW(Activité)-MIN(ROW(Activité))+1),ROWS($B$3:B69)))&CHAR(10),\"\")","v":""},null,{"$f":"IFERROR(INDEX(Activité,SMALL(IF(Cible=$F$2,ROW(Activité)-MIN(ROW(Activité))+1),ROWS($B$3:B69)))&CHAR(10),\"\")","v":""},null,{"$f":"IFERROR(INDEX(Activité,SMALL(IF(Cible=$H$2,ROW(Activité)-MIN(ROW(Activité))+1),ROWS($B$3:B69)))&CHAR(10),\"\")","v":""}]
[null,{"$f":"IFERROR(INDEX(Activité,SMALL(IF(Cible=$B$2,ROW(Activité)-MIN(ROW(Activité))+1),ROWS($B$3:B70)))&\" \"&CHAR(10)&(INDEX(Résultat,SMALL(IF(Cible=$B$2,ROW(Résultat)-MIN(ROW(Résultat))+1),ROWS($B$3:B70))))&CHAR(10),\"\")","v":""},null,{"$f":"IFERROR(INDEX(Activité,SMALL(IF(Cible=$D$2,ROW(Activité)-MIN(ROW(Activité))+1),ROWS($B$3:B70)))&CHAR(10),\"\")","v":""},null,{"$f":"IFERROR(INDEX(Activité,SMALL(IF(Cible=$F$2,ROW(Activité)-MIN(ROW(Activité))+1),ROWS($B$3:B70)))&CHAR(10),\"\")","v":""},null,{"$f":"IFERROR(INDEX(Activité,SMALL(IF(Cible=$H$2,ROW(Activité)-MIN(ROW(Activité))+1),ROWS($B$3:B70)))&CHAR(10),\"\")","v":""}]
[null,{"$f":"IFERROR(INDEX(Activité,SMALL(IF(Cible=$B$2,ROW(Activité)-MIN(ROW(Activité))+1),ROWS($B$3:B71)))&\" \"&CHAR(10)&(INDEX(Résultat,SMALL(IF(Cible=$B$2,ROW(Résultat)-MIN(ROW(Résultat))+1),ROWS($B$3:B71))))&CHAR(10),\"\")","v":""},null,{"$f":"IFERROR(INDEX(Activité,SMALL(IF(Cible=$D$2,ROW(Activité)-MIN(ROW(Activité))+1),ROWS($B$3:B71)))&CHAR(10),\"\")","v":""},null,{"$f":"IFERROR(INDEX(Activité,SMALL(IF(Cible=$F$2,ROW(Activité)-MIN(ROW(Activité))+1),ROWS($B$3:B71)))&CHAR(10),\"\")","v":""},null,{"$f":"IFERROR(INDEX(Activité,SMALL(IF(Cible=$H$2,ROW(Activité)-MIN(ROW(Activité))+1),ROWS($B$3:B71)))&CHAR(10),\"\")","v":""}]
[null,{"$f":"IFERROR(INDEX(Activité,SMALL(IF(Cible=$B$2,ROW(Activité)-MIN(ROW(Activité))+1),ROWS($B$3:B72)))&\" \"&CHAR(10)&(INDEX(Résultat,SMALL(IF(Cible=$B$2,ROW(Résultat)-MIN(ROW(Résultat))+1),ROWS($B$3:B72))))&CHAR(10),\"\")","v":""},null,{"$f":"IFERROR(INDEX(Activité,SMALL(IF(Cible=$D$2,ROW(Activité)-MIN(ROW(Activité))+1),ROWS($B$3:B72)))&CHAR(10),\"\")","v":""},null,{"$f":"IFERROR(INDEX(Activité,SMALL(IF(Cible=$F$2,ROW(Activité)-MIN(ROW(Activité))+1),ROWS($B$3:B72)))&CHAR(10),\"\")","v":""},null,{"$f":"IFERROR(INDEX(Activité,SMALL(IF(Cible=$H$2,ROW(Activité)-MIN(ROW(Activité))+1),ROWS($B$3:B72)))&CHAR(10),\"\")","v":""}]
[null,{"$f":"IFERROR(INDEX(Activité,SMALL(IF(Cible=$B$2,ROW(Activité)-MIN(ROW(Activité))+1),ROWS($B$3:B73)))&\" \"&CHAR(10)&(INDEX(Résultat,SMALL(IF(Cible=$B$2,ROW(Résultat)-MIN(ROW(Résultat))+1),ROWS($B$3:B73))))&CHAR(10),\"\")","v":""},null,{"$f":"IFERROR(INDEX(Activité,SMALL(IF(Cible=$D$2,ROW(Activité)-MIN(ROW(Activité))+1),ROWS($B$3:B73)))&CHAR(10),\"\")","v":""},null,{"$f":"IFERROR(INDEX(Activité,SMALL(IF(Cible=$F$2,ROW(Activité)-MIN(ROW(Activité))+1),ROWS($B$3:B73)))&CHAR(10),\"\")","v":""},null,{"$f":"IFERROR(INDEX(Activité,SMALL(IF(Cible=$H$2,ROW(Activité)-MIN(ROW(Activité))+1),ROWS($B$3:B73)))&CHAR(10),\"\")","v":""}]
[null,{"$f":"IFERROR(INDEX(Activité,SMALL(IF(Cible=$B$2,ROW(Activité)-MIN(ROW(Activité))+1),ROWS($B$3:B74)))&\" \"&CHAR(10)&(INDEX(Résultat,SMALL(IF(Cible=$B$2,ROW(Résultat)-MIN(ROW(Résultat))+1),ROWS($B$3:B74))))&CHAR(10),\"\")","v":""},null,{"$f":"IFERROR(INDEX(Activité,SMALL(IF(Cible=$D$2,ROW(Activité)-MIN(ROW(Activité))+1),ROWS($B$3:B74)))&CHAR(10),\"\")","v":""},null,{"$f":"IFERROR(INDEX(Activité,SMALL(IF(Cible=$F$2,ROW(Activité)-MIN(ROW(Activité))+1),ROWS($B$3:B74)))&CHAR(10),\"\")","v":""},null,{"$f":"IFERROR(INDEX(Activité,SMALL(IF(Cible=$H$2,ROW(Activité)-MIN(ROW(Activité))+1),ROWS($B$3:B74)))&CHAR(10),\"\")","v":""}]
[null,{"$f":"IFERROR(INDEX(Activité,SMALL(IF(Cible=$B$2,ROW(Activité)-MIN(ROW(Activité))+1),ROWS($B$3:B75)))&\" \"&CHAR(10)&(INDEX(Résultat,SMALL(IF(Cible=$B$2,ROW(Résultat)-MIN(ROW(Résultat))+1),ROWS($B$3:B75))))&CHAR(10),\"\")","v":""},null,{"$f":"IFERROR(INDEX(Activité,SMALL(IF(Cible=$D$2,ROW(Activité)-MIN(ROW(Activité))+1),ROWS($B$3:B75)))&CHAR(10),\"\")","v":""},null,{"$f":"IFERROR(INDEX(Activité,SMALL(IF(Cible=$F$2,ROW(Activité)-MIN(ROW(Activité))+1),ROWS($B$3:B75)))&CHAR(10),\"\")","v":""},null,{"$f":"IFERROR(INDEX(Activité,SMALL(IF(Cible=$H$2,ROW(Activité)-MIN(ROW(Activité))+1),ROWS($B$3:B75)))&CHAR(10),\"\")","v":""}]
[null,{"$f":"IFERROR(INDEX(Activité,SMALL(IF(Cible=$B$2,ROW(Activité)-MIN(ROW(Activité))+1),ROWS($B$3:B76)))&\" \"&CHAR(10)&(INDEX(Résultat,SMALL(IF(Cible=$B$2,ROW(Résultat)-MIN(ROW(Résultat))+1),ROWS($B$3:B76))))&CHAR(10),\"\")","v":""},null,{"$f":"IFERROR(INDEX(Activité,SMALL(IF(Cible=$D$2,ROW(Activité)-MIN(ROW(Activité))+1),ROWS($B$3:B76)))&CHAR(10),\"\")","v":""},null,{"$f":"IFERROR(INDEX(Activité,SMALL(IF(Cible=$F$2,ROW(Activité)-MIN(ROW(Activité))+1),ROWS($B$3:B76)))&CHAR(10),\"\")","v":""},null,{"$f":"IFERROR(INDEX(Activité,SMALL(IF(Cible=$H$2,ROW(Activité)-MIN(ROW(Activité))+1),ROWS($B$3:B76)))&CHAR(10),\"\")","v":""}]
[null,{"$f":"IFERROR(INDEX(Activité,SMALL(IF(Cible=$B$2,ROW(Activité)-MIN(ROW(Activité))+1),ROWS($B$3:B77)))&\" \"&CHAR(10)&(INDEX(Résultat,SMALL(IF(Cible=$B$2,ROW(Résultat)-MIN(ROW(Résultat))+1),ROWS($B$3:B77))))&CHAR(10),\"\")","v":""},null,{"$f":"IFERROR(INDEX(Activité,SMALL(IF(Cible=$D$2,ROW(Activité)-MIN(ROW(Activité))+1),ROWS($B$3:B77)))&CHAR(10),\"\")","v":""},null,{"$f":"IFERROR(INDEX(Activité,SMALL(IF(Cible=$F$2,ROW(Activité)-MIN(ROW(Activité))+1),ROWS($B$3:B77)))&CHAR(10),\"\")","v":""},null,{"$f":"IFERROR(INDEX(Activité,SMALL(IF(Cible=$H$2,ROW(Activité)-MIN(ROW(Activité))+1),ROWS($B$3:B77)))&CHAR(10),\"\")","v":""}]
[null,{"$f":"IFERROR(INDEX(Activité,SMALL(IF(Cible=$B$2,ROW(Activité)-MIN(ROW(Activité))+1),ROWS($B$3:B78)))&\" \"&CHAR(10)&(INDEX(Résultat,SMALL(IF(Cible=$B$2,ROW(Résultat)-MIN(ROW(Résultat))+1),ROWS($B$3:B78))))&CHAR(10),\"\")","v":""},null,{"$f":"IFERROR(INDEX(Activité,SMALL(IF(Cible=$D$2,ROW(Activité)-MIN(ROW(Activité))+1),ROWS($B$3:B78)))&CHAR(10),\"\")","v":""},null,{"$f":"IFERROR(INDEX(Activité,SMALL(IF(Cible=$F$2,ROW(Activité)-MIN(ROW(Activité))+1),ROWS($B$3:B78)))&CHAR(10),\"\")","v":""},null,{"$f":"IFERROR(INDEX(Activité,SMALL(IF(Cible=$H$2,ROW(Activité)-MIN(ROW(Activité))+1),ROWS($B$3:B78)))&CHAR(10),\"\")","v":""}]
[null,{"$f":"IFERROR(INDEX(Activité,SMALL(IF(Cible=$B$2,ROW(Activité)-MIN(ROW(Activité))+1),ROWS($B$3:B79)))&\" \"&CHAR(10)&(INDEX(Résultat,SMALL(IF(Cible=$B$2,ROW(Résultat)-MIN(ROW(Résultat))+1),ROWS($B$3:B79))))&CHAR(10),\"\")","v":""},null,{"$f":"IFERROR(INDEX(Activité,SMALL(IF(Cible=$D$2,ROW(Activité)-MIN(ROW(Activité))+1),ROWS($B$3:B79)))&CHAR(10),\"\")","v":""},null,{"$f":"IFERROR(INDEX(Activité,SMALL(IF(Cible=$F$2,ROW(Activité)-MIN(ROW(Activité))+1),ROWS($B$3:B79)))&CHAR(10),\"\")","v":""},null,{"$f":"IFERROR(INDEX(Activité,SMALL(IF(Cible=$H$2,ROW(Activité)-MIN(ROW(Activité))+1),ROWS($B$3:B79)))&CHAR(10),\"\")","v":""}]
[null,{"$f":"IFERROR(INDEX(Activité,SMALL(IF(Cible=$B$2,ROW(Activité)-MIN(ROW(Activité))+1),ROWS($B$3:B80)))&\" \"&CHAR(10)&(INDEX(Résultat,SMALL(IF(Cible=$B$2,ROW(Résultat)-MIN(ROW(Résultat))+1),ROWS($B$3:B80))))&CHAR(10),\"\")","v":""},null,{"$f":"IFERROR(INDEX(Activité,SMALL(IF(Cible=$D$2,ROW(Activité)-MIN(ROW(Activité))+1),ROWS($B$3:B80)))&CHAR(10),\"\")","v":""},null,{"$f":"IFERROR(INDEX(Activité,SMALL(IF(Cible=$F$2,ROW(Activité)-MIN(ROW(Activité))+1),ROWS($B$3:B80)))&CHAR(10),\"\")","v":""},null,{"$f":"IFERROR(INDEX(Activité,SMALL(IF(Cible=$H$2,ROW(Activité)-MIN(ROW(Activité))+1),ROWS($B$3:B80)))&CHAR(10),\"\")","v":""}]
[null,{"$f":"IFERROR(INDEX(Activité,SMALL(IF(Cible=$B$2,ROW(Activité)-MIN(ROW(Activité))+1),ROWS($B$3:B81)))&\" \"&CHAR(10)&(INDEX(Résultat,SMALL(IF(Cible=$B$2,ROW(Résultat)-MIN(ROW(Résultat))+1),ROWS($B$3:B81))))&CHAR(10),\"\")","v":""},null,{"$f":"IFERROR(INDEX(Activité,SMALL(IF(Cible=$D$2,ROW(Activité)-MIN(ROW(Activité))+1),ROWS($B$3:B81)))&CHAR(10),\"\")","v":""},null,{"$f":"IFERROR(INDEX(Activité,SMALL(IF(Cible=$F$2,ROW(Activité)-MIN(ROW(Activité))+1),ROWS($B$3:B81)))&CHAR(10),\"\")","v":""},null,{"$f":"IFERROR(INDEX(Activité,SMALL(IF(Cible=$H$2,ROW(Activité)-MIN(ROW(Activité))+1),ROWS($B$3:B81)))&CHAR(10),\"\")","v":""}]
[null,{"$f":"IFERROR(INDEX(Activité,SMALL(IF(Cible=$B$2,ROW(Activité)-MIN(ROW(Activité))+1),ROWS($B$3:B82)))&\" \"&CHAR(10)&(INDEX(Résultat,SMALL(IF(Cible=$B$2,ROW(Résultat)-MIN(ROW(Résultat))+1),ROWS($B$3:B82))))&CHAR(10),\"\")","v":""},null,{"$f":"IFERROR(INDEX(Activité,SMALL(IF(Cible=$D$2,ROW(Activité)-MIN(ROW(Activité))+1),ROWS($B$3:B82)))&CHAR(10),\"\")","v":""},null,{"$f":"IFERROR(INDEX(Activité,SMALL(IF(Cible=$F$2,ROW(Activité)-MIN(ROW(Activité))+1),ROWS($B$3:B82)))&CHAR(10),\"\")","v":""},null,{"$f":"IFERROR(INDEX(Activité,SMALL(IF(Cible=$H$2,ROW(Activité)-MIN(ROW(Activité))+1),ROWS($B$3:B82)))&CHAR(10),\"\")","v":""}]
[null,{"$f":"IFERROR(INDEX(Activité,SMALL(IF(Cible=$B$2,ROW(Activité)-MIN(ROW(Activité))+1),ROWS($B$3:B83)))&\" \"&CHAR(10)&(INDEX(Résultat,SMALL(IF(Cible=$B$2,ROW(Résultat)-MIN(ROW(Résultat))+1),ROWS($B$3:B83))))&CHAR(10),\"\")","v":""},null,{"$f":"IFERROR(INDEX(Activité,SMALL(IF(Cible=$D$2,ROW(Activité)-MIN(ROW(Activité))+1),ROWS($B$3:B83)))&CHAR(10),\"\")","v":""},null,{"$f":"IFERROR(INDEX(Activité,SMALL(IF(Cible=$F$2,ROW(Activité)-MIN(ROW(Activité))+1),ROWS($B$3:B83)))&CHAR(10),\"\")","v":""},null,{"$f":"IFERROR(INDEX(Activité,SMALL(IF(Cible=$H$2,ROW(Activité)-MIN(ROW(Activité))+1),ROWS($B$3:B83)))&CHAR(10),\"\")","v":""}]
[null,{"$f":"IFERROR(INDEX(Activité,SMALL(IF(Cible=$B$2,ROW(Activité)-MIN(ROW(Activité))+1),ROWS($B$3:B84)))&\" \"&CHAR(10)&(INDEX(Résultat,SMALL(IF(Cible=$B$2,ROW(Résultat)-MIN(ROW(Résultat))+1),ROWS($B$3:B84))))&CHAR(10),\"\")","v":""},null,{"$f":"IFERROR(INDEX(Activité,SMALL(IF(Cible=$D$2,ROW(Activité)-MIN(ROW(Activité))+1),ROWS($B$3:B84)))&CHAR(10),\"\")","v":""},null,{"$f":"IFERROR(INDEX(Activité,SMALL(IF(Cible=$F$2,ROW(Activité)-MIN(ROW(Activité))+1),ROWS($B$3:B84)))&CHAR(10),\"\")","v":""},null,{"$f":"IFERROR(INDEX(Activité,SMALL(IF(Cible=$H$2,ROW(Activité)-MIN(ROW(Activité))+1),ROWS($B$3:B84)))&CHAR(10),\"\")","v":""}]
[null,{"$f":"IFERROR(INDEX(Activité,SMALL(IF(Cible=$B$2,ROW(Activité)-MIN(ROW(Activité))+1),ROWS($B$3:B85)))&\" \"&CHAR(10)&(INDEX(Résultat,SMALL(IF(Cible=$B$2,ROW(Résultat)-MIN(ROW(Résultat))+1),ROWS($B$3:B85))))&CHAR(10),\"\")","v":""},null,{"$f":"IFERROR(INDEX(Activité,SMALL(IF(Cible=$D$2,ROW(Activité)-MIN(ROW(Activité))+1),ROWS($B$3:B85)))&CHAR(10),\"\")","v":""},null,{"$f":"IFERROR(INDEX(Activité,SMALL(IF(Cible=$F$2,ROW(Activité)-MIN(ROW(Activité))+1),ROWS($B$3:B85)))&CHAR(10),\"\")","v":""},null,{"$f":"IFERROR(INDEX(Activité,SMALL(IF(Cible=$H$2,ROW(Activité)-MIN(ROW(Activité))+1),ROWS($B$3:B85)))&CHAR(10),\"\")","v":""}]
[null,{"$f":"IFERROR(INDEX(Activité,SMALL(IF(Cible=$B$2,ROW(Activité)-MIN(ROW(Activité))+1),ROWS($B$3:B86)))&\" \"&CHAR(10)&(INDEX(Résultat,SMALL(IF(Cible=$B$2,ROW(Résultat)-MIN(ROW(Résultat))+1),ROWS($B$3:B86))))&CHAR(10),\"\")","v":""},null,{"$f":"IFERROR(INDEX(Activité,SMALL(IF(Cible=$D$2,ROW(Activité)-MIN(ROW(Activité))+1),ROWS($B$3:B86)))&CHAR(10),\"\")","v":""},null,{"$f":"IFERROR(INDEX(Activité,SMALL(IF(Cible=$F$2,ROW(Activité)-MIN(ROW(Activité))+1),ROWS($B$3:B86)))&CHAR(10),\"\")","v":""},null,{"$f":"IFERROR(INDEX(Activité,SMALL(IF(Cible=$H$2,ROW(Activité)-MIN(ROW(Activité))+1),ROWS($B$3:B86)))&CHAR(10),\"\")","v":""}]
[null,{"$f":"IFERROR(INDEX(Activité,SMALL(IF(Cible=$B$2,ROW(Activité)-MIN(ROW(Activité))+1),ROWS($B$3:B87)))&\" \"&CHAR(10)&(INDEX(Résultat,SMALL(IF(Cible=$B$2,ROW(Résultat)-MIN(ROW(Résultat))+1),ROWS($B$3:B87))))&CHAR(10),\"\")","v":""},null,{"$f":"IFERROR(INDEX(Activité,SMALL(IF(Cible=$D$2,ROW(Activité)-MIN(ROW(Activité))+1),ROWS($B$3:B87)))&CHAR(10),\"\")","v":""},null,{"$f":"IFERROR(INDEX(Activité,SMALL(IF(Cible=$F$2,ROW(Activité)-MIN(ROW(Activité))+1),ROWS($B$3:B87)))&CHAR(10),\"\")","v":""},null,{"$f":"IFERROR(INDEX(Activité,SMALL(IF(Cible=$H$2,ROW(Activité)-MIN(ROW(Activité))+1),ROWS($B$3:B87)))&CHAR(10),\"\")","v":""}]
[null,{"$f":"IFERROR(INDEX(Activité,SMALL(IF(Cible=$B$2,ROW(Activité)-MIN(ROW(Activité))+1),ROWS($B$3:B88)))&\" \"&CHAR(10)&(INDEX(Résultat,SMALL(IF(Cible=$B$2,ROW(Résultat)-MIN(ROW(Résultat))+1),ROWS($B$3:B88))))&CHAR(10),\"\")","v":""},null,{"$f":"IFERROR(INDEX(Activité,SMALL(IF(Cible=$D$2,ROW(Activité)-MIN(ROW(Activité))+1),ROWS($B$3:B88)))&CHAR(10),\"\")","v":""},null,{"$f":"IFERROR(INDEX(Activité,SMALL(IF(Cible=$F$2,ROW(Activité)-MIN(ROW(Activité))+1),ROWS($B$3:B88)))&CHAR(10),\"\")","v":""},null,{"$f":"IFERROR(INDEX(Activité,SMALL(IF(Cible=$H$2,ROW(Activité)-MIN(ROW(Activité))+1),ROWS($B$3:B88)))&CHAR(10),\"\")","v":""}]
[null,{"$f":"IFERROR(INDEX(Activité,SMALL(IF(Cible=$B$2,ROW(Activité)-MIN(ROW(Activité))+1),ROWS($B$3:B89)))&\" \"&CHAR(10)&(INDEX(Résultat,SMALL(IF(Cible=$B$2,ROW(Résultat)-MIN(ROW(Résultat))+1),ROWS($B$3:B89))))&CHAR(10),\"\")","v":""},null,{"$f":"IFERROR(INDEX(Activité,SMALL(IF(Cible=$D$2,ROW(Activité)-MIN(ROW(Activité))+1),ROWS($B$3:B89)))&CHAR(10),\"\")","v":""},null,{"$f":"IFERROR(INDEX(Activité,SMALL(IF(Cible=$F$2,ROW(Activité)-MIN(ROW(Activité))+1),ROWS($B$3:B89)))&CHAR(10),\"\")","v":""},null,{"$f":"IFERROR(INDEX(Activité,SMALL(IF(Cible=$H$2,ROW(Activité)-MIN(ROW(Activité))+1),ROWS($B$3:B89)))&CHAR(10),\"\")","v":""}]
[null,{"$f":"IFERROR(INDEX(Activité,SMALL(IF(Cible=$B$2,ROW(Activité)-MIN(ROW(Activité))+1),ROWS($B$3:B90)))&\" \"&CHAR(10)&(INDEX(Résultat,SMALL(IF(Cible=$B$2,ROW(Résultat)-MIN(ROW(Résultat))+1),ROWS($B$3:B90))))&CHAR(10),\"\")","v":""},null,{"$f":"IFERROR(INDEX(Activité,SMALL(IF(Cible=$D$2,ROW(Activité)-MIN(ROW(Activité))+1),ROWS($B$3:B90)))&CHAR(10),\"\")","v":""},null,{"$f":"IFERROR(INDEX(Activité,SMALL(IF(Cible=$F$2,ROW(Activité)-MIN(ROW(Activité))+1),ROWS($B$3:B90)))&CHAR(10),\"\")","v":""},null,{"$f":"IFERROR(INDEX(Activité,SMALL(IF(Cible=$H$2,ROW(Activité)-MIN(ROW(Activité))+1),ROWS($B$3:B90)))&CHAR(10),\"\")","v":""}]
[null,{"$f":"IFERROR(INDEX(Activité,SMALL(IF(Cible=$B$2,ROW(Activité)-MIN(ROW(Activité))+1),ROWS($B$3:B91)))&\" \"&CHAR(10)&(INDEX(Résultat,SMALL(IF(Cible=$B$2,ROW(Résultat)-MIN(ROW(Résultat))+1),ROWS($B$3:B91))))&CHAR(10),\"\")","v":""},null,{"$f":"IFERROR(INDEX(Activité,SMALL(IF(Cible=$D$2,ROW(Activité)-MIN(ROW(Activité))+1),ROWS($B$3:B91)))&CHAR(10),\"\")","v":""},null,{"$f":"IFERROR(INDEX(Activité,SMALL(IF(Cible=$F$2,ROW(Activité)-MIN(ROW(Activité))+1),ROWS($B$3:B91)))&CHAR(10),\"\")","v":""},null,{"$f":"IFERROR(INDEX(Activité,SMALL(IF(Cible=$H$2,ROW(Activité)-MIN(ROW(Activité))+1),ROWS($B$3:B91)))&CHAR(10),\"\")","v":""}]
[null,{"$f":"IFERROR(INDEX(Activité,SMALL(IF(Cible=$B$2,ROW(Activité)-MIN(ROW(Activité))+1),ROWS($B$3:B92)))&\" \"&CHAR(10)&(INDEX(Résultat,SMALL(IF(Cible=$B$2,ROW(Résultat)-MIN(ROW(Résultat))+1),ROWS($B$3:B92))))&CHAR(10),\"\")","v":""},null,{"$f":"IFERROR(INDEX(Activité,SMALL(IF(Cible=$D$2,ROW(Activité)-MIN(ROW(Activité))+1),ROWS($B$3:B92)))&CHAR(10),\"\")","v":""},null,{"$f":"IFERROR(INDEX(Activité,SMALL(IF(Cible=$F$2,ROW(Activité)-MIN(ROW(Activité))+1),ROWS($B$3:B92)))&CHAR(10),\"\")","v":""},null,{"$f":"IFERROR(INDEX(Activité,SMALL(IF(Cible=$H$2,ROW(Activité)-MIN(ROW(Activité))+1),ROWS($B$3:B92)))&CHAR(10),\"\")","v":""}]
[null,{"$f":"IFERROR(INDEX(Activité,SMALL(IF(Cible=$B$2,ROW(Activité)-MIN(ROW(Activité))+1),ROWS($B$3:B93)))&\" \"&CHAR(10)&(INDEX(Résultat,SMALL(IF(Cible=$B$2,ROW(Résultat)-MIN(ROW(Résultat))+1),ROWS($B$3:B93))))&CHAR(10),\"\")","v":""},null,{"$f":"IFERROR(INDEX(Activité,SMALL(IF(Cible=$D$2,ROW(Activité)-MIN(ROW(Activité))+1),ROWS($B$3:B93)))&CHAR(10),\"\")","v":""},null,{"$f":"IFERROR(INDEX(Activité,SMALL(IF(Cible=$F$2,ROW(Activité)-MIN(ROW(Activité))+1),ROWS($B$3:B93)))&CHAR(10),\"\")","v":""},null,{"$f":"IFERROR(INDEX(Activité,SMALL(IF(Cible=$H$2,ROW(Activité)-MIN(ROW(Activité))+1),ROWS($B$3:B93)))&CHAR(10),\"\")","v":""}]
[null,{"$f":"IFERROR(INDEX(Activité,SMALL(IF(Cible=$B$2,ROW(Activité)-MIN(ROW(Activité))+1),ROWS($B$3:B94)))&\" \"&CHAR(10)&(INDEX(Résultat,SMALL(IF(Cible=$B$2,ROW(Résultat)-MIN(ROW(Résultat))+1),ROWS($B$3:B94))))&CHAR(10),\"\")","v":""},null,{"$f":"IFERROR(INDEX(Activité,SMALL(IF(Cible=$D$2,ROW(Activité)-MIN(ROW(Activité))+1),ROWS($B$3:B94)))&CHAR(10),\"\")","v":""},null,{"$f":"IFERROR(INDEX(Activité,SMALL(IF(Cible=$F$2,ROW(Activité)-MIN(ROW(Activité))+1),ROWS($B$3:B94)))&CHAR(10),\"\")","v":""},null,{"$f":"IFERROR(INDEX(Activité,SMALL(IF(Cible=$H$2,ROW(Activité)-MIN(ROW(Activité))+1),ROWS($B$3:B94)))&CHAR(10),\"\")","v":""}]
[null,{"$f":"IFERROR(INDEX(Activité,SMALL(IF(Cible=$B$2,ROW(Activité)-MIN(ROW(Activité))+1),ROWS($B$3:B95)))&\" \"&CHAR(10)&(INDEX(Résultat,SMALL(IF(Cible=$B$2,ROW(Résultat)-MIN(ROW(Résultat))+1),ROWS($B$3:B95))))&CHAR(10),\"\")","v":""},null,{"$f":"IFERROR(INDEX(Activité,SMALL(IF(Cible=$D$2,ROW(Activité)-MIN(ROW(Activité))+1),ROWS($B$3:B95)))&CHAR(10),\"\")","v":""},null,{"$f":"IFERROR(INDEX(Activité,SMALL(IF(Cible=$F$2,ROW(Activité)-MIN(ROW(Activité))+1),ROWS($B$3:B95)))&CHAR(10),\"\")","v":""},null,{"$f":"IFERROR(INDEX(Activité,SMALL(IF(Cible=$H$2,ROW(Activité)-MIN(ROW(Activité))+1),ROWS($B$3:B95)))&CHAR(10),\"\")","v":""}]
[null,{"$f":"IFERROR(INDEX(Activité,SMALL(IF(Cible=$B$2,ROW(Activité)-MIN(ROW(Activité))+1),ROWS($B$3:B96)))&\" \"&CHAR(10)&(INDEX(Résultat,SMALL(IF(Cible=$B$2,ROW(Résultat)-MIN(ROW(Résultat))+1),ROWS($B$3:B96))))&CHAR(10),\"\")","v":""},null,{"$f":"IFERROR(INDEX(Activité,SMALL(IF(Cible=$D$2,ROW(Activité)-MIN(ROW(Activité))+1),ROWS($B$3:B96)))&CHAR(10),\"\")","v":""},null,{"$f":"IFERROR(INDEX(Activité,SMALL(IF(Cible=$F$2,ROW(Activité)-MIN(ROW(Activité))+1),ROWS($B$3:B96)))&CHAR(10),\"\")","v":""},null,{"$f":"IFERROR(INDEX(Activité,SMALL(IF(Cible=$H$2,ROW(Activité)-MIN(ROW(Activité))+1),ROWS($B$3:B96)))&CHAR(10),\"\")","v":""}]
[null,{"$f":"IFERROR(INDEX(Activité,SMALL(IF(Cible=$B$2,ROW(Activité)-MIN(ROW(Activité))+1),ROWS($B$3:B97)))&\" \"&CHAR(10)&(INDEX(Résultat,SMALL(IF(Cible=$B$2,ROW(Résultat)-MIN(ROW(Résultat))+1),ROWS($B$3:B97))))&CHAR(10),\"\")","v":""},null,{"$f":"IFERROR(INDEX(Activité,SMALL(IF(Cible=$D$2,ROW(Activité)-MIN(ROW(Activité))+1),ROWS($B$3:B97)))&CHAR(10),\"\")","v":""},null,{"$f":"IFERROR(INDEX(Activité,SMALL(IF(Cible=$F$2,ROW(Activité)-MIN(ROW(Activité))+1),ROWS($B$3:B97)))&CHAR(10),\"\")","v":""},null,{"$f":"IFERROR(INDEX(Activité,SMALL(IF(Cible=$H$2,ROW(Activité)-MIN(ROW(Activité))+1),ROWS($B$3:B97)))&CHAR(10),\"\")","v":""}]
[null,{"$f":"IFERROR(INDEX(Activité,SMALL(IF(Cible=$B$2,ROW(Activité)-MIN(ROW(Activité))+1),ROWS($B$3:B98)))&\" \"&CHAR(10)&(INDEX(Résultat,SMALL(IF(Cible=$B$2,ROW(Résultat)-MIN(ROW(Résultat))+1),ROWS($B$3:B98))))&CHAR(10),\"\")","v":""},null,{"$f":"IFERROR(INDEX(Activité,SMALL(IF(Cible=$D$2,ROW(Activité)-MIN(ROW(Activité))+1),ROWS($B$3:B98)))&CHAR(10),\"\")","v":""},null,{"$f":"IFERROR(INDEX(Activité,SMALL(IF(Cible=$F$2,ROW(Activité)-MIN(ROW(Activité))+1),ROWS($B$3:B98)))&CHAR(10),\"\")","v":""},null,{"$f":"IFERROR(INDEX(Activité,SMALL(IF(Cible=$H$2,ROW(Activité)-MIN(ROW(Activité))+1),ROWS($B$3:B98)))&CHAR(10),\"\")","v":""}]
[null,{"$f":"IFERROR(INDEX(Activité,SMALL(IF(Cible=$B$2,ROW(Activité)-MIN(ROW(Activité))+1),ROWS($B$3:B99)))&\" \"&CHAR(10)&(INDEX(Résultat,SMALL(IF(Cible=$B$2,ROW(Résultat)-MIN(ROW(Résultat))+1),ROWS($B$3:B99))))&CHAR(10),\"\")","v":""},null,{"$f":"IFERROR(INDEX(Activité,SMALL(IF(Cible=$D$2,ROW(Activité)-MIN(ROW(Activité))+1),ROWS($B$3:B99)))&CHAR(10),\"\")","v":""},null,{"$f":"IFERROR(INDEX(Activité,SMALL(IF(Cible=$F$2,ROW(Activité)-MIN(ROW(Activité))+1),ROWS($B$3:B99)))&CHAR(10),\"\")","v":""},null,{"$f":"IFERROR(INDEX(Activité,SMALL(IF(Cible=$H$2,ROW(Activité)-MIN(ROW(Activité))+1),ROWS($B$3:B99)))&CHAR(10),\"\")","v":""}]
[null,{"$f":"IFERROR(INDEX(Activité,SMALL(IF(Cible=$B$2,ROW(Activité)-MIN(ROW(Activité))+1),ROWS($B$3:B100)))&\" \"&CHAR(10)&(INDEX(Résultat,SMALL(IF(Cible=$B$2,ROW(Résultat)-MIN(ROW(Résultat))+1),ROWS($B$3:B100))))&CHAR(10),\"\")","v":""},null,{"$f":"IFERROR(INDEX(Activité,SMALL(IF(Cible=$D$2,ROW(Activité)-MIN(ROW(Activité))+1),ROWS($B$3:B100)))&CHAR(10),\"\")","v":""},null,{"$f":"IFERROR(INDEX(Activité,SMALL(IF(Cible=$F$2,ROW(Activité)-MIN(ROW(Activité))+1),ROWS($B$3:B100)))&CHAR(10),\"\")","v":""},null,{"$f":"IFERROR(INDEX(Activité,SMALL(IF(Cible=$H$2,ROW(Activité)-MIN(ROW(Activité))+1),ROWS($B$3:B100)))&CHAR(10),\"\")","v":""}]

{"sheet":"À propos de","index":2,"n_rows":6,"n_cols":1,"rows_kept":6}
["À propos de ce classeur"]
["Instructions pour les lecteurs d’écran"]
["Ce classeur contient trois feuilles de calcul. \n\nDonnées de feuille de route\nFeuille de route Agile\nÀ propos de\n\nLes instructions relatives à chaque feuille de calcul figurent dans la colonne A à partir de la cellule A1. Elles sont rédigées en texte masqué. Chaque étape vous explique comment utiliser les informations décrites dans la ligne. Les étapes suivantes sont décrites dans les cellules A2, A3, etc. sauf mention contraire. Par exemple, l’instruction peut indiquer de « consulter la cellule A6 » pour l’étape suivante. \n\nLe texte masqué n’est pas imprimé.\n\nPour supprimer ces instructions d’une feuille de calcul, supprimez simplement la colonne A.\n"]
["À propos de ce classeur"]
["Entrez les informations relatives aux jalons dans la feuille de calcul Données de feuille de route.  Pensez à trier par priorité puis par jalon pour que les éléments Terminé, En cours, Court terme et À venir soient classés par priorité décroissante (c’est-à-dire les éléments à priorité élevée en tête de liste). La feuille de route de la feuille de calcul Feuille de route Agile est mise à jour automatiquement.\n"]
["Ceci est la dernière instruction de cette feuille de calcul."]